Workbook

Sheet выгрузка
B1: Логин: DirectService1
B2: Период: с 01.12.2022 00:00 по 01.01.2023 00:00
F3: =COUNTIF(F5:F72141,F72141) -> 70488
B4: Задание | C4: Название рассылки | D4: Получатель | E4: Отправитель | F4: Статус | G4: Дата создания | H4: Отправлено | I4: Страна | J4: Группа операторов | K4: Текст сообщения | L4: наличие в КУБе
A5: =D5*1 -> 79515105891 | B5: 0 | D5: 79515105891 | E5: SocApteka | F5: Доставлено | G5: 2022-12-01T11:53:28 | H5: 2022-12-01T11:53:28 | I5: Россия | J5: Tele2 Russia | K5: В 10 раз больше бонусов за покупку 3 дня до и 3 дня после ДНЯ РОЖДЕНИЯ | L5: 1
A6: =D6*1 -> 79034598060 | B6: 0 | D6: 79034598060 | E6: SocApteka | F6: Доставлено | G6: 2022-12-01T11:53:28 | H6: 2022-12-01T11:53:28 | I6: Россия | J6: Beeline | K6: В 10 раз больше бонусов за покупку 3 дня до и 3 дня после ДНЯ РОЖДЕНИЯ | L6: 1
A7: 79097562113 | B7: 0 | D7: 79097562113 | E7: SocApteka | F7: Доставлено | G7: 2022-12-01T11:53:28 | H7: 2022-12-01T11:53:28 | I7: Россия | J7: Beeline | K7: В 10 раз больше бонусов за покупку 3 дня до и 3 дня после ДНЯ РОЖДЕНИЯ | L7: 1
A8: 79092063376 | B8: 0 | D8: 79092063376 | E8: SocApteka | F8: Доставлено | G8: 2022-12-01T11:53:28 | H8: 2022-12-01T11:53:28 | I8: Россия | J8: Tele2 Russia | K8: В 10 раз больше бонусов за покупку 3 дня до и 3 дня после ДНЯ РОЖДЕНИЯ | L8: 1
A9: 79282140272 | B9: 0 | D9: 79282140272 | E9: SocApteka | F9: Доставлено | G9: 2022-12-01T11:53:28 | H9: 2022-12-01T11:53:28 | I9: Россия | J9: MegaFon | K9: В 10 раз больше бонусов за покупку 3 дня до и 3 дня после ДНЯ РОЖДЕНИЯ | L9: 1
A10: 79517664796 | B10: 0 | D10: 79517664796 | E10: SocApteka | F10: Доставлено | G10: 2022-12-01T11:53:28 | H10: 2022-12-01T11:53:28 | I10: Россия | J10: Tele2 Russia | K10: В 10 раз больше бонусов за покупку 3 дня до и 3 дня после ДНЯ РОЖДЕНИЯ | L10: 1
A11: 79081883324 | B11: 0 | D11: 79081883324 | E11: SocApteka | F11: Доставлено | G11: 2022-12-01T11:53:28 | H11: 2022-12-01T11:53:28 | I11: Россия | J11: Tele2 Russia | K11: В 10 раз больше бонусов за покупку 3 дня до и 3 дня после ДНЯ РОЖДЕНИЯ | L11: 1
A12: 79614994559 | B12: 0 | D12: 79614994559 | E12: SocApteka | F12: Доставлено | G12: 2022-12-01T11:53:28 | H12: 2022-12-01T11:53:28 | I12: Россия | J12: Beeline | K12: В 10 раз больше бонусов за покупку 3 дня до и 3 дня после ДНЯ РОЖДЕНИЯ | L12: 1
A13: 79604592319 | B13: 0 | D13: 79604592319 | E13: SocApteka | F13: Доставлено | G13: 2022-12-01T11:53:28 | H13: 2022-12-01T11:53:28 | I13: Россия | J13: Beeline | K13: В 10 раз больше бонусов за покупку 3 дня до и 3 дня после ДНЯ РОЖДЕНИЯ | L13: 1
A14: 79281253980 | B14: 0 | D14: 79281253980 | E14: SocApteka | F14: Доставлено | G14: 2022-12-01T11:53:28 | H14: 2022-12-01T11:53:28 | I14: Россия | J14: MegaFon | K14: В 10 раз больше бонусов за покупку 3 дня до и 3 дня после ДНЯ РОЖДЕНИЯ | L14: 1
A15: 79081391906 | B15: 0 | D15: 79081391906 | E15: SocApteka | F15: Доставлено | G15: 2022-12-01T11:53:28 | H15: 2022-12-01T11:53:28 | I15: Россия | J15: Tele2 Russia | K15: В 10 раз больше бонусов за покупку 3 дня до и 3 дня после ДНЯ РОЖДЕНИЯ | L15: 1
A16: 79508516863 | B16: 0 | D16: 79508516863 | E16: SocApteka | F16: Доставлено | G16: 2022-12-01T11:53:28 | H16: 2022-12-01T11:53:28 | I16: Россия | J16: Tele2 Russia | K16: В 10 раз больше бонусов за покупку 3 дня до и 3 дня после ДНЯ РОЖДЕНИЯ | L16: 1
A17: 79515604303 | B17: 0 | D17: 79515604303 | E17: SocApteka | F17: Доставлено | G17: 2022-12-01T11:53:28 | H17: 2022-12-01T11:53:28 | I17: Россия | J17: Tele2 Russia | K17: В 10 раз больше бонусов за покупку 3 дня до и 3 дня после ДНЯ РОЖДЕНИЯ | L17: 1
A18: 79515362854 | B18: 0 | D18: 79515362854 | E18: SocApteka | F18: Доставлено | G18: 2022-12-01T11:53:28 | H18: 2022-12-01T11:53:28 | I18: Россия | J18: Tele2 Russia | K18: В 10 раз больше бонусов за покупку 3 дня до и 3 дня после ДНЯ РОЖДЕНИЯ | L18: 1
A19: 79913669079 | B19: 0 | D19: 79913669079 | E19: SocApteka | F19: Доставлено | G19: 2022-12-01T11:53:28 | H19: 2022-12-01T11:53:28 | I19: Россия | J19: Beeline | K19: В 10 раз больше бонусов за покупку 3 дня до и 3 дня после ДНЯ РОЖДЕНИЯ | L19: 1
A20: 79054399621 | B20: 0 | D20: 79054399621 | E20: SocApteka | F20: Доставлено | G20: 2022-12-01T11:53:28 | H20: 2022-12-01T11:53:28 | I20: Россия | J20: Beeline | K20: В 10 раз больше бонусов за покупку 3 дня до и 3 дня после ДНЯ РОЖДЕНИЯ | L20: 1
A21: 79525611400 | B21: 0 | D21: 79525611400 | E21: SocApteka | F21: Доставлено | G21: 2022-12-01T11:53:28 | H21: 2022-12-01T11:53:28 | I21: Россия | J21: Tele2 Russia | K21: В 10 раз больше бонусов за покупку 3 дня до и 3 дня после ДНЯ РОЖДЕНИЯ | L21: 1
A22: 79281007404 | B22: 0 | D22: 79281007404 | E22: SocApteka | F22: Доставлено | G22: 2022-12-01T11:53:28 | H22: 2022-12-01T11:53:28 | I22: Россия | J22: MegaFon | K22: В 10 раз больше бонусов за покупку 3 дня до и 3 дня после ДНЯ РОЖДЕНИЯ | L22: 1
A23: 79614063121 | B23: 0 | D23: 79614063121 | E23: SocApteka | F23: Доставлено | G23: 2022-12-01T11:53:28 | H23: 2022-12-01T11:53:28 | I23: Россия | J23: Beeline | K23: В 10 раз больше бонусов за покупку 3 дня до и 3 дня после ДНЯ РОЖДЕНИЯ | L23: 1
A24: 79381082798 | B24: 0 | D24: 79381082798 | E24: SocApteka | F24: Доставлено | G24: 2022-12-01T11:53:28 | H24: 2022-12-01T11:53:28 | I24: Россия | J24: MegaFon | K24: В 10 раз больше бонусов за покупку 3 дня до и 3 дня после ДНЯ РОЖДЕНИЯ | L24: 1
A25: 79202248860 | B25: 0 | D25: 79202248860 | E25: SocApteka | F25: Доставлено | G25: 2022-12-01T11:53:28 | H25: 2022-12-01T11:53:28 | I25: Россия | J25: MegaFon | K25: В 10 раз больше бонусов за покупку 3 дня до и 3 дня после ДНЯ РОЖДЕНИЯ | L25: 1
A26: 79620083820 | B26: 0 | D26: 79620083820 | E26: SocApteka | F26: Доставлено | G26: 2022-12-01T11:53:28 | H26: 2022-12-01T11:53:28 | I26: Россия | J26: Beeline | K26: В 10 раз больше бонусов за покупку 3 дня до и 3 дня после ДНЯ РОЖДЕНИЯ | L26: 1
A27: 79081923133 | B27: 0 | D27: 79081923133 | E27: SocApteka | F27: Доставлено | G27: 2022-12-01T11:53:28 | H27: 2022-12-01T11:53:28 | I27: Россия | J27: Другие операторы | K27: В 10 раз больше бонусов за покупку 3 дня до и 3 дня после ДНЯ РОЖДЕНИЯ | L27: 1
A28: 79081958156 | B28: 0 | D28: 79081958156 | E28: SocApteka | F28: Доставлено | G28: 2022-12-01T11:53:28 | H28: 2022-12-01T11:53:28 | I28: Россия | J28: Tele2 Russia | K28: В 10 раз больше бонусов за покупку 3 дня до и 3 дня после ДНЯ РОЖДЕНИЯ | L28: 1
A29: 79286523278 | B29: 0 | D29: 79286523278 | E29: SocApteka | F29: Доставлено | G29: 2022-12-01T11:53:28 | H29: 2022-12-01T11:53:28 | I29: Россия | J29: MegaFon | K29: В 10 раз больше бонусов за покупку 3 дня до и 3 дня после ДНЯ РОЖДЕНИЯ | L29: 1
A30: 79275063703 | B30: 0 | D30: 79275063703 | E30: SocApteka | F30: Доставлено | G30: 2022-12-01T11:53:28 | H30: 2022-12-01T11:53:28 | I30: Россия | J30: MegaFon | K30: В 10 раз больше бонусов за покупку 3 дня до и 3 дня после ДНЯ РОЖДЕНИЯ | L30: 1
A31: 79384705383 | B31: 0 | D31: 79384705383 | E31: SocApteka | F31: Доставлено | G31: 2022-12-01T11:53:28 | H31: 2022-12-01T11:53:28 | I31: Россия | J31: Beeline | K31: В 10 раз больше бонусов за покупку 3 дня до и 3 дня после ДНЯ РОЖДЕНИЯ | L31: 0
A32: 79054757030 | B32: 0 | D32: 79054757030 | E32: SocApteka | F32: Доставлено | G32: 2022-12-01T11:53:28 | H32: 2022-12-01T11:53:28 | I32: Россия | J32: Beeline | K32: В 10 раз больше бонусов за покупку 3 дня до и 3 дня после ДНЯ РОЖДЕНИЯ | L32: 1
A33: 79250496871 | B33: 0 | D33: 79250496871 | E33: SocApteka | F33: Доставлено | G33: 2022-12-01T11:53:28 | H33: 2022-12-01T11:53:28 | I33: Россия | J33: MegaFon | K33: В 10 раз больше бонусов за покупку 3 дня до и 3 дня после ДНЯ РОЖДЕНИЯ | L33: 1
A34: 79612772787 | B34: 0 | D34: 79612772787 | E34: SocApteka | F34: Доставлено | G34: 2022-12-01T11:53:28 | H34: 2022-12-01T11:53:28 | I34: Россия | J34: Beeline | K34: В 10 раз больше бонусов за покупку 3 дня до и 3 дня после ДНЯ РОЖДЕНИЯ | L34: 1
A35: 79085177725 | B35: 0 | D35: 79085177725 | E35: SocApteka | F35: Доставлено | G35: 2022-12-01T11:53:28 | H35: 2022-12-01T11:53:28 | I35: Россия | J35: Tele2 Russia | K35: В 10 раз больше бонусов за покупку 3 дня до и 3 дня после ДНЯ РОЖДЕНИЯ | L35: 0
A36: 79034384347 | B36: 0 | D36: 79034384347 | E36: SocApteka | F36: Доставлено | G36: 2022-12-01T11:53:28 | H36: 2022-12-01T11:53:28 | I36: Россия | J36: Beeline | K36: В 10 раз больше бонусов за покупку 3 дня до и 3 дня после ДНЯ РОЖДЕНИЯ | L36: 1
A37: 79034865479 | B37: 0 | D37: 79034865479 | E37: SocApteka | F37: Доставлено | G37: 2022-12-01T11:53:28 | H37: 2022-12-01T11:53:28 | I37: Россия | J37: Beeline | K37: В 10 раз больше бонусов за покупку 3 дня до и 3 дня после ДНЯ РОЖДЕНИЯ | L37: 1
A38: 79094233956 | B38: 0 | D38: 79094233956 | E38: SocApteka | F38: Доставлено | G38: 2022-12-01T11:53:28 | H38: 2022-12-01T11:53:28 | I38: Россия | J38: Beeline | K38: В 10 раз больше бонусов за покупку 3 дня до и 3 дня после ДНЯ РОЖДЕНИЯ | L38: 1
A39: 79521002655 | B39: 0 | D39: 79521002655 | E39: SocApteka | F39: Доставлено | G39: 2022-12-01T11:53:28 | H39: 2022-12-01T11:53:28 | I39: Россия | J39: Tele2 Russia | K39: В 10 раз больше бонусов за покупку 3 дня до и 3 дня после ДНЯ РОЖДЕНИЯ | L39: 1
A40: 79511323092 | B40: 0 | D40: 79511323092 | E40: SocApteka | F40: Доставлено | G40: 2022-12-01T11:53:28 | H40: 2022-12-01T11:53:28 | I40: Россия | J40: Tele2 Russia | K40: В 10 раз больше бонусов за покупку 3 дня до и 3 дня после ДНЯ РОЖДЕНИЯ | L40: 1
A41: 79009271749 | B41: 0 | D41: 79009271749 | E41: SocApteka | F41: Доставлено | G41: 2022-12-01T11:53:28 | H41: 2022-12-01T11:53:28 | I41: Россия | J41: Tele2 Russia | K41: В 10 раз больше бонусов за покупку 3 дня до и 3 дня после ДНЯ РОЖДЕНИЯ | L41: 1
A42: 79044398386 | B42: 0 | D42: 79044398386 | E42: SocApteka | F42: Доставлено | G42: 2022-12-01T11:53:28 | H42: 2022-12-01T11:53:28 | I42: Россия | J42: Tele2 Russia | K42: В 10 раз больше бонусов за покупку 3 дня до и 3 дня после ДНЯ РОЖДЕНИЯ | L42: 1
A43: 79525947914 | B43: 0 | D43: 79525947914 | E43: SocApteka | F43: Доставлено | G43: 2022-12-01T11:53:28 | H43: 2022-12-01T11:53:28 | I43: Россия | J43: Tele2 Russia | K43: В 10 раз больше бонусов за покупку 3 дня до и 3 дня после ДНЯ РОЖДЕНИЯ | L43: 1
A44: 79281195046 | B44: 0 | D44: 79281195046 | E44: SocApteka | F44: Доставлено | G44: 2022-12-01T11:53:28 | H44: 2022-12-01T11:53:28 | I44: Россия | J44: MegaFon | K44: В 10 раз больше бонусов за покупку 3 дня до и 3 дня после ДНЯ РОЖДЕНИЯ | L44: 1
A45: 79624133638 | B45: 0 | D45: 79624133638 | E45: SocApteka | F45: Доставлено | G45: 2022-12-01T11:53:28 | H45: 2022-12-01T11:53:28 | I45: Россия | J45: Beeline | K45: В 10 раз больше бонусов за покупку 3 дня до и 3 дня после ДНЯ РОЖДЕНИЯ | L45: 1
A46: 79518487072 | B46: 0 | D46: 79518487072 | E46: SocApteka | F46: Доставлено | G46: 2022-12-01T11:53:28 | H46: 2022-12-01T11:53:28 | I46: Россия | J46: Tele2 Russia | K46: В 10 раз больше бонусов за покупку 3 дня до и 3 дня после ДНЯ РОЖДЕНИЯ | L46: 1
A47: 79624334331 | B47: 0 | D47: 79624334331 | E47: SocApteka | F47: Доставлено | G47: 2022-12-01T11:53:28 | H47: 2022-12-01T11:53:28 | I47: Россия | J47: Beeline | K47: В 10 раз больше бонусов за покупку 3 дня до и 3 дня после ДНЯ РОЖДЕНИЯ | L47: 1
A48: 79045003637 | B48: 0 | D48: 79045003637 | E48: SocApteka | F48: Доставлено | G48: 2022-12-01T11:53:28 | H48: 2022-12-01T11:53:28 | I48: Россия | J48: Tele2 Russia | K48: В 10 раз больше бонусов за покупку 3 дня до и 3 дня после ДНЯ РОЖДЕНИЯ | L48: 1
A49: 79515034524 | B49: 0 | D49: 79515034524 | E49: SocApteka | F49: Доставлено | G49: 2022-12-01T11:53:28 | H49: 2022-12-01T11:53:28 | I49: Россия | J49: Tele2 Russia | K49: В 10 раз больше бонусов за покупку 3 дня до и 3 дня после ДНЯ РОЖДЕНИЯ | L49: 1
A50: 79531105410 | B50: 0 | D50: 79531105410 | E50: SocApteka | F50: Доставлено | G50: 2022-12-01T11:53:28 | H50: 2022-12-01T11:53:28 | I50: Россия | J50: Tele2 Russia | K50: В 10 раз больше бонусов за покупку 3 дня до и 3 дня после ДНЯ РОЖДЕНИЯ | L50: 0
A51: 79914181104 | B51: 0 | D51: 79914181104 | E51: SocApteka | F51: Доставлено | G51: 2022-12-01T11:53:28 | H51: 2022-12-01T11:53:28 | I51: Россия | J51: Tele2 Russia | K51: В 10 раз больше бонусов за покупку 3 дня до и 3 дня после ДНЯ РОЖДЕНИЯ | L51: 1
A52: 79034011715 | B52: 0 | D52: 79034011715 | E52: SocApteka | F52: Доставлено | G52: 2022-12-01T11:53:28 | H52: 2022-12-01T11:53:28 | I52: Россия | J52: Beeline | K52: В 10 раз больше бонусов за покупку 3 дня до и 3 дня после ДНЯ РОЖДЕНИЯ | L52: 1
A53: 79081814754 | B53: 0 | D53: 79081814754 | E53: SocApteka | F53: Доставлено | G53: 2022-12-01T11:53:28 | H53: 2022-12-01T11:53:28 | I53: Россия | J53: Tele2 Russia | K53: В 10 раз больше бонусов за покупку 3 дня до и 3 дня после ДНЯ РОЖДЕНИЯ | L53: 1
A54: 79081944054 | B54: 0 | D54: 79081944054 | E54: SocApteka | F54: Доставлено | G54: 2022-12-01T11:53:28 | H54: 2022-12-01T11:53:28 | I54: Россия | J54: Tele2 Russia | K54: В 10 раз больше бонусов за покупку 3 дня до и 3 дня после ДНЯ РОЖДЕНИЯ | L54: 1
A55: 79289090005 | B55: 0 | D55: 79289090005 | E55: SocApteka | F55: Доставлено | G55: 2022-12-01T11:53:28 | H55: 2022-12-01T11:53:28 | I55: Россия | J55: MegaFon | K55: В 10 раз больше бонусов за покупку 3 дня до и 3 дня после ДНЯ РОЖДЕНИЯ | L55: 1
A56: 79042958802 | B56: 0 | D56: 79042958802 | E56: SocApteka | F56: Доставлено | G56: 2022-12-01T11:53:28 | H56: 2022-12-01T11:53:28 | I56: Россия | J56: Tele2 Russia | K56: В 10 раз больше бонусов за покупку 3 дня до и 3 дня после ДНЯ РОЖДЕНИЯ | L56: 1
A57: 79053985059 | B57: 0 | D57: 79053985059 | E57: SocApteka | F57: Доставлено | G57: 2022-12-01T11:53:28 | H57: 2022-12-01T11:53:28 | I57: Россия | J57: Beeline | K57: В 10 раз больше бонусов за покупку 3 дня до и 3 дня после ДНЯ РОЖДЕНИЯ | L57: 1
A58: 79281101022 | B58: 0 | D58: 79281101022 | E58: SocApteka | F58: Доставлено | G58: 2022-12-01T11:53:28 | H58: 2022-12-01T11:53:28 | I58: Россия | J58: MegaFon | K58: В 10 раз больше бонусов за покупку 3 дня до и 3 дня после ДНЯ РОЖДЕНИЯ | L58: 1
A59: 79034066859 | B59: 0 | D59: 79034066859 | E59: SocApteka | F59: Доставлено | G59: 2022-12-01T11:53:28 | H59: 2022-12-01T11:53:28 | I59: Россия | J59: Beeline | K59: В 10 раз больше бонусов за покупку 3 дня до и 3 дня после ДНЯ РОЖДЕНИЯ | L59: 1
A60: 79289017341 | B60: 0 | D60: 79289017341 | E60: SocApteka | F60: Доставлено | G60: 2022-12-01T11:53:28 | H60: 2022-12-01T11:53:28 | I60: Россия | J60: MegaFon | K60: В 10 раз больше бонусов за покупку 3 дня до и 3 дня после ДНЯ РОЖДЕНИЯ | L60: 1
A61: 79044187131 | B61: 0 | D61: 79044187131 | E61: SocApteka | F61: Доставлено | G61: 2022-12-01T11:53:28 | H61: 2022-12-01T11:53:28 | I61: Россия | J61: Tele2 Russia | K61: В 10 раз больше бонусов за покупку 3 дня до и 3 дня после ДНЯ РОЖДЕНИЯ | L61: 1
A62: 79044459176 | B62: 0 | D62: 79044459176 | E62: SocApteka | F62: Доставлено | G62: 2022-12-01T11:53:28 | H62: 2022-12-01T11:53:28 | I62: Россия | J62: Tele2 Russia | K62: В 10 раз больше бонусов за покупку 3 дня до и 3 дня после ДНЯ РОЖДЕНИЯ | L62: 1
A63: 79283493081 | B63: 0 | D63: 79283493081 | E63: SocApteka | F63: Доставлено | G63: 2022-12-01T11:53:28 | H63: 2022-12-01T11:53:28 | I63: Россия | J63: MegaFon | K63: В 10 раз больше бонусов за покупку 3 дня до и 3 дня после ДНЯ РОЖДЕНИЯ | L63: 1
A64: 79202116086 | B64: 0 | D64: 79202116086 | E64: SocApteka | F64: Доставлено | G64: 2022-12-01T11:53:28 | H64: 2022-12-01T11:53:28 | I64: Россия | J64: MegaFon | K64: В 10 раз больше бонусов за покупку 3 дня до и 3 дня после ДНЯ РОЖДЕНИЯ | L64: 1
A65: 79287662060 | B65: 0 | D65: 79287662060 | E65: SocApteka | F65: Доставлено | G65: 2022-12-01T11:53:28 | H65: 2022-12-01T11:53:28 | I65: Россия | J65: MegaFon | K65: В 10 раз больше бонусов за покупку 3 дня до и 3 дня после ДНЯ РОЖДЕНИЯ | L65: 1
A66: 79034077755 | B66: 0 | D66: 79034077755 | E66: SocApteka | F66: Просрочено | G66: 2022-12-01T11:53:28 | H66: 2022-12-01T11:53:28 | I66: Россия | J66: Beeline | K66: В 10 раз больше бонусов за покупку 3 дня до и 3 дня после ДНЯ РОЖДЕНИЯ | L66: 0
A67: 79054270047 | B67: 0 | D67: 79054270047 | E67: SocApteka | F67: Доставлено | G67: 2022-12-01T11:53:28 | H67: 2022-12-01T11:53:28 | I67: Россия | J67: Rostelecom | K67: В 10 раз больше бонусов за покупку 3 дня до и 3 дня после ДНЯ РОЖДЕНИЯ | L67: 1
A68: 79064610999 | B68: 0 | D68: 79064610999 | E68: SocApteka | F68: Доставлено | G68: 2022-12-01T11:53:28 | H68: 2022-12-01T11:53:28 | I68: Россия | J68: Beeline | K68: В 10 раз больше бонусов за покупку 3 дня до и 3 дня после ДНЯ РОЖДЕНИЯ | L68: 1
A69: 79183907913 | B69: 0 | D69: 79183907913 | E69: SocApteka | F69: Доставлено | G69: 2022-12-01T11:53:28 | H69: 2022-12-01T11:53:28 | I69: Россия | J69: Tele2 Russia | K69: В 10 раз больше бонусов за покупку 3 дня до и 3 дня после ДНЯ РОЖДЕНИЯ | L69: 1
A70: =D70*1 -> 79604430585 | B70: 0 | D70: 79604430585 | E70: SocApteka | F70: Доставлено | G70: 2022-12-01T11:53:28 | H70: 2022-12-01T11:53:28 | I70: Россия | J70: Beeline | K70: В 10 раз больше бонусов за покупку 3 дня до и 3 дня после ДНЯ РОЖДЕНИЯ | L70: 1
A71: 79515102620 | B71: 0 | D71: 79515102620 | E71: SocApteka | F71: Доставлено | G71: 2022-12-01T11:53:29 | H71: 2022-12-01T11:53:29 | I71: Россия | J71: Tele2 Russia | K71: В 10 раз больше бонусов за покупку 3 дня до и 3 дня после ДНЯ РОЖДЕНИЯ | L71: 1
A72: 79604697600 | B72: 0 | D72: 79604697600 | E72: SocApteka | F72: Доставлено | G72: 2022-12-01T11:53:29 | H72: 2022-12-01T11:53:29 | I72: Россия | J72: Beeline | K72: В 10 раз больше бонусов за покупку 3 дня до и 3 дня после ДНЯ РОЖДЕНИЯ | L72: 1
A73: 79513043377 | B73: 0 | D73: 79513043377 | E73: SocApteka | F73: Доставлено | G73: 2022-12-01T11:53:29 | H73: 2022-12-01T11:53:29 | I73: Россия | J73: Tele2 Russia | K73: В 10 раз больше бонусов за покупку 3 дня до и 3 дня после ДНЯ РОЖДЕНИЯ | L73: 1
A74: 79204179986 | B74: 0 | D74: 79204179986 | E74: SocApteka | F74: Доставлено | G74: 2022-12-01T11:53:30 | H74: 2022-12-01T11:53:30 | I74: Россия | J74: MegaFon | K74: В 10 раз больше бонусов за покупку 3 дня до и 3 дня после ДНЯ РОЖДЕНИЯ | L74: 1
A75: 79529514257 | B75: 0 | D75: 79529514257 | E75: SocApteka | F75: Доставлено | G75: 2022-12-01T11:53:30 | H75: 2022-12-01T11:53:30 | I75: Россия | J75: Tele2 Russia | K75: В 10 раз больше бонусов за покупку 3 дня до и 3 дня после ДНЯ РОЖДЕНИЯ | L75: 1
A76: 79682694042 | B76: 0 | D76: 79682694042 | E76: SocApteka | F76: Доставлено | G76: 2022-12-01T11:53:30 | H76: 2022-12-01T11:53:30 | I76: Россия | J76: Beeline | K76: В 10 раз больше бонусов за покупку 3 дня до и 3 дня после ДНЯ РОЖДЕНИЯ | L76: 1
A77: 79624316604 | B77: 0 | D77: 79624316604 | E77: SocApteka | F77: Доставлено | G77: 2022-12-01T11:53:30 | H77: 2022-12-01T11:53:30 | I77: Россия | J77: Beeline | K77: В 10 раз больше бонусов за покупку 3 дня до и 3 дня после ДНЯ РОЖДЕНИЯ | L77: 1
A78: 79287567803 | B78: 0 | D78: 79287567803 | E78: SocApteka | F78: Доставлено | G78: 2022-12-01T11:53:30 | H78: 2022-12-01T11:53:30 | I78: Россия | J78: MegaFon | K78: В 10 раз больше бонусов за покупку 3 дня до и 3 дня после ДНЯ РОЖДЕНИЯ | L78: 1
A79: 79696525457 | B79: 0 | D79: 79696525457 | E79: SocApteka | F79: Доставлено | G79: 2022-12-01T11:53:30 | H79: 2022-12-01T11:53:30 | I79: Россия | J79: Tele2 Russia | K79: В 10 раз больше бонусов за покупку 3 дня до и 3 дня после ДНЯ РОЖДЕНИЯ | L79: 1
A80: 79204362999 | B80: 0 | D80: 79204362999 | E80: SocApteka | F80: Доставлено | G80: 2022-12-01T11:53:30 | H80: 2022-12-01T11:53:30 | I80: Россия | J80: MegaFon | K80: В 10 раз больше бонусов за покупку 3 дня до и 3 дня после ДНЯ РОЖДЕНИЯ | L80: 1
A81: 79624590267 | B81: 0 | D81: 79624590267 | E81: SocApteka | F81: Доставлено | G81: 2022-12-01T11:53:30 | H81: 2022-12-01T11:53:30 | I81: Россия | J81: Beeline | K81: В 10 раз больше бонусов за покупку 3 дня до и 3 дня после ДНЯ РОЖДЕНИЯ | L81: 1
A82: 79009573674 | B82: 0 | D82: 79009573674 | E82: SocApteka | F82: Доставлено | G82: 2022-12-01T11:53:30 | H82: 2022-12-01T11:53:30 | I82: Россия | J82: Tele2 Russia | K82: В 10 раз больше бонусов за покупку 3 дня до и 3 дня после ДНЯ РОЖДЕНИЯ | L82: 1
A83: 79094042056 | B83: 0 | D83: 79094042056 | E83: SocApteka | F83: Доставлено | G83: 2022-12-01T11:53:30 | H83: 2022-12-01T11:53:30 | I83: Россия | J83: Beeline | K83: В 10 раз больше бонусов за покупку 3 дня до и 3 дня после ДНЯ РОЖДЕНИЯ | L83: 1
A84: 79085174520 | B84: 0 | D84: 79085174520 | E84: SocApteka | F84: Доставлено | G84: 2022-12-01T11:53:30 | H84: 2022-12-01T11:53:30 | I84: Россия | J84: Tele2 Russia | K84: В 10 раз больше бонусов за покупку 3 дня до и 3 дня после ДНЯ РОЖДЕНИЯ | L84: 1
A85: 79185108334 | B85: 0 | D85: 79185108334 | E85: SocApteka | F85: Доставлено | G85: 2022-12-01T11:53:30 | H85: 2022-12-01T11:53:30 | I85: Россия | J85: Rostelecom | K85: В 10 раз больше бонусов за покупку 3 дня до и 3 дня после ДНЯ РОЖДЕНИЯ | L85: 1
A86: 79507798542 | B86: 0 | D86: 79507798542 | E86: SocApteka | F86: Доставлено | G86: 2022-12-01T11:53:30 | H86: 2022-12-01T11:53:30 | I86: Россия | J86: Tele2 Russia | K86: В 10 раз больше бонусов за покупку 3 дня до и 3 дня после ДНЯ РОЖДЕНИЯ | L86: 1
A87: 79097544244 | B87: 0 | D87: 79097544244 | E87: SocApteka | F87: Доставлено | G87: 2022-12-01T11:53:30 | H87: 2022-12-01T11:53:30 | I87: Россия | J87: Beeline | K87: В 10 раз больше бонусов за покупку 3 дня до и 3 дня после ДНЯ РОЖДЕНИЯ | L87: 1
A88: 79612972226 | B88: 0 | D88: 79612972226 | E88: SocApteka | F88: Доставлено | G88: 2022-12-01T11:53:30 | H88: 2022-12-01T11:53:30 | I88: Россия | J88: Beeline | K88: В 10 раз больше бонусов за покупку 3 дня до и 3 дня после ДНЯ РОЖДЕНИЯ | L88: 1
A89: 79682620156 | B89: 0 | D89: 79682620156 | E89: SocApteka | F89: Доставлено | G89: 2022-12-01T11:53:30 | H89: 2022-12-01T11:53:30 | I89: Россия | J89: Beeline | K89: В 10 раз больше бонусов за покупку 3 дня до и 3 дня после ДНЯ РОЖДЕНИЯ | L89: 1
A90: 79282797195 | B90: 0 | D90: 79282797195 | E90: SocApteka | F90: Доставлено | G90: 2022-12-01T11:53:30 | H90: 2022-12-01T11:53:30 | I90: Россия | J90: MegaFon | K90: В 10 раз больше бонусов за покупку 3 дня до и 3 дня после ДНЯ РОЖДЕНИЯ | L90: 1
A91: 79515016511 | B91: 0 | D91: 79515016511 | E91: SocApteka | F91: Доставлено | G91: 2022-12-01T11:53:30 | H91: 2022-12-01T11:53:30 | I91: Россия | J91: Tele2 Russia | K91: В 10 раз больше бонусов за покупку 3 дня до и 3 дня после ДНЯ РОЖДЕНИЯ | L91: 1
A92: 79507708995 | B92: 0 | D92: 79507708995 | E92: SocApteka | F92: Доставлено | G92: 2022-12-01T11:53:31 | H92: 2022-12-01T11:53:31 | I92: Россия | J92: Tele2 Russia | K92: В 10 раз больше бонусов за покупку 3 дня до и 3 дня после ДНЯ РОЖДЕНИЯ | L92: 1
A93: 79044491444 | B93: 0 | D93: 79044491444 | E93: SocApteka | F93: Доставлено | G93: 2022-12-01T11:53:31 | H93: 2022-12-01T11:53:31 | I93: Россия | J93: Tele2 Russia | K93: В 10 раз больше бонусов за покупку 3 дня до и 3 дня после ДНЯ РОЖДЕНИЯ | L93: 1
A94: 79515112273 | B94: 0 | D94: 79515112273 | E94: SocApteka | F94: Доставлено | G94: 2022-12-01T11:53:31 | H94: 2022-12-01T11:53:31 | I94: Россия | J94: Tele2 Russia | K94: В 10 раз больше бонусов за покупку 3 дня до и 3 дня после ДНЯ РОЖДЕНИЯ | L94: 1
A95: 79288136507 | B95: 0 | D95: 79288136507 | E95: SocApteka | F95: Доставлено | G95: 2022-12-01T11:53:31 | H95: 2022-12-01T11:53:31 | I95: Россия | J95: MegaFon | K95: В 10 раз больше бонусов за покупку 3 дня до и 3 дня после ДНЯ РОЖДЕНИЯ | L95: 1
A96: 79515585215 | B96: 0 | D96: 79515585215 | E96: SocApteka | F96: Доставлено | G96: 2022-12-01T11:53:31 | H96: 2022-12-01T11:53:31 | I96: Россия | J96: Tele2 Russia | K96: В 10 раз больше бонусов за покупку 3 дня до и 3 дня после ДНЯ РОЖДЕНИЯ | L96: 1
A97: 79281149176 | B97: 0 | D97: 79281149176 | E97: SocApteka | F97: Доставлено | G97: 2022-12-01T11:53:31 | H97: 2022-12-01T11:53:31 | I97: Россия | J97: MegaFon | K97: В 10 раз больше бонусов за покупку 3 дня до и 3 дня после ДНЯ РОЖДЕНИЯ | L97: 1
A98: 79044460843 | B98: 0 | D98: 79044460843 | E98: SocApteka | F98: Доставлено | G98: 2022-12-01T11:53:31 | H98: 2022-12-01T11:53:31 | I98: Россия | J98: Beeline | K98: В 10 раз больше бонусов за покупку 3 дня до и 3 дня после ДНЯ РОЖДЕНИЯ | L98: 1
A99: 79515220262 | B99: 0 | D99: 79515220262 | E99: SocApteka | F99: Доставлено | G99: 2022-12-01T11:53:31 | H99: 2022-12-01T11:53:31 | I99: Россия | J99: Tele2 Russia | K99: В 10 раз больше бонусов за покупку 3 дня до и 3 дня после ДНЯ РОЖДЕНИЯ | L99: 1
A100: 79289567875 | B100: 0 | D100: 79289567875 | E100: SocApteka | F100: Доставлено | G100: 2022-12-01T11:53:31 | H100: 2022-12-01T11:53:31 | I100: Россия | J100: MegaFon | K100: В 10 раз больше бонусов за покупку 3 дня до и 3 дня после ДНЯ РОЖДЕНИЯ | L100: 1
A101: 79381003326 | B101: 0 | D101: 79381003326 | E101: SocApteka | F101: Доставлено | G101: 2022-12-01T11:53:31 | H101: 2022-12-01T11:53:31 | I101: Россия | J101: MegaFon | K101: В 10 раз больше бонусов за покупку 3 дня до и 3 дня после ДНЯ РОЖДЕНИЯ | L101: 1
A102: 79281424198 | B102: 0 | D102: 79281424198 | E102: SocApteka | F102: Доставлено | G102: 2022-12-01T11:53:31 | H102: 2022-12-01T11:53:31 | I102: Россия | J102: MegaFon | K102: В 10 раз больше бонусов за покупку 3 дня до и 3 дня после ДНЯ РОЖДЕНИЯ | L102: 1
A103: 79043413187 | B103: 0 | D103: 79043413187 | E103: SocApteka | F103: Доставлено | G103: 2022-12-01T11:53:31 | H103: 2022-12-01T11:53:31 | I103: Россия | J103: Tele2 Russia | K103: В 10 раз больше бонусов за покупку 3 дня до и 3 дня после ДНЯ РОЖДЕНИЯ | L103: 1
A104: 79773363498 | B104: 0 | D104: 79773363498 | E104: SocApteka | F104: Доставлено | G104: 2022-12-01T11:53:31 | H104: 2022-12-01T11:53:31 | I104: Россия | J104: Tele2 Russia | K104: В 10 раз больше бонусов за покупку 3 дня до и 3 дня после ДНЯ РОЖДЕНИЯ | L104: 1
A105: 79283177945 | B105: 0 | D105: 79283177945 | E105: SocApteka | F105: Доставлено | G105: 2022-12-01T11:53:31 | H105: 2022-12-01T11:53:31 | I105: Россия | J105: MegaFon | K105: В 10 раз больше бонусов за покупку 3 дня до и 3 дня после ДНЯ РОЖДЕНИЯ | L105: 1
A106: 79272538057 | B106: 0 | D106: 79272538057 | E106: SocApteka | F106: Доставлено | G106: 2022-12-01T11:53:31 | H106: 2022-12-01T11:53:31 | I106: Россия | J106: MegaFon | K106: В 10 раз больше бонусов за покупку 3 дня до и 3 дня после ДНЯ РОЖДЕНИЯ | L106: 1
A107: 79066868773 | B107: 0 | D107: 79066868773 | E107: SocApteka | F107: Доставлено | G107: 2022-12-01T11:53:31 | H107: 2022-12-01T11:53:31 | I107: Россия | J107: Beeline | K107: В 10 раз больше бонусов за покупку 3 дня до и 3 дня после ДНЯ РОЖДЕНИЯ | L107: 1
A108: 79620017517 | B108: 0 | D108: 79620017517 | E108: SocApteka | F108: Доставлено | G108: 2022-12-01T11:53:31 | H108: 2022-12-01T11:53:31 | I108: Россия | J108: Beeline | K108: В 10 раз больше бонусов за покупку 3 дня до и 3 дня после ДНЯ РОЖДЕНИЯ | L108: 1
A109: 79614790049 | B109: 0 | D109: 79614790049 | E109: SocApteka | F109: Доставлено | G109: 2022-12-01T11:53:31 | H109: 2022-12-01T11:53:31 | I109: Россия | J109: Beeline | K109: В 10 раз больше бонусов за покупку 3 дня до и 3 дня после ДНЯ РОЖДЕНИЯ | L109: 1
A110: 79518693216 | B110: 0 | D110: 79518693216 | E110: SocApteka | F110: Доставлено | G110: 2022-12-01T11:53:31 | H110: 2022-12-01T11:53:31 | I110: Россия | J110: Beeline | K110: В 10 раз больше бонусов за покупку 3 дня до и 3 дня после ДНЯ РОЖДЕНИЯ | L110: 1
A111: 79286080601 | B111: 0 | D111: 79286080601 | E111: SocApteka | F111: Доставлено | G111: 2022-12-01T11:53:31 | H111: 2022-12-01T11:53:31 | I111: Россия | J111: MegaFon | K111: В 10 раз больше бонусов за покупку 3 дня до и 3 дня после ДНЯ РОЖДЕНИЯ | L111: 1
A112: 79081786533 | B112: 0 | D112: 79081786533 | E112: SocApteka | F112: Доставлено | G112: 2022-12-01T11:53:31 | H112: 2022-12-01T11:53:31 | I112: Россия | J112: Tele2 Russia | K112: В 10 раз больше бонусов за покупку 3 дня до и 3 дня после ДНЯ РОЖДЕНИЯ | L112: 1
A113: 79298203239 | B113: 0 | D113: 79298203239 | E113: SocApteka | F113: Доставлено | G113: 2022-12-01T11:53:31 | H113: 2022-12-01T11:53:31 | I113: Россия | J113: MegaFon | K113: В 10 раз больше бонусов за покупку 3 дня до и 3 дня после ДНЯ РОЖДЕНИЯ | L113: 1
A114: 79515129762 | B114: 0 | D114: 79515129762 | E114: SocApteka | F114: Доставлено | G114: 2022-12-01T11:53:31 | H114: 2022-12-01T11:53:31 | I114: Россия | J114: Tele2 Russia | K114: В 10 раз больше бонусов за покупку 3 дня до и 3 дня после ДНЯ РОЖДЕНИЯ | L114: 1
A115: 79618445021 | B115: 0 | D115: 79618445021 | E115: SocApteka | F115: Доставлено | G115: 2022-12-01T11:53:29 | H115: 2022-12-01T11:53:29 | I115: Россия | J115: Beeline | K115: В 10 раз больше бонусов за покупку 3 дня до и 3 дня после ДНЯ РОЖДЕНИЯ | L115: 1
A116: 79081992999 | B116: 0 | D116: 79081992999 | E116: SocApteka | F116: Доставлено | G116: 2022-12-01T11:53:29 | H116: 2022-12-01T11:53:29 | I116: Россия | J116: Beeline | K116: В 10 раз больше бонусов за покупку 3 дня до и 3 дня после ДНЯ РОЖДЕНИЯ | L116: 1
A117: 79054269803 | B117: 0 | D117: 79054269803 | E117: SocApteka | F117: Доставлено | G117: 2022-12-01T11:53:29 | H117: 2022-12-01T11:53:29 | I117: Россия | J117: Beeline | K117: В 10 раз больше бонусов за покупку 3 дня до и 3 дня после ДНЯ РОЖДЕНИЯ | L117: 1
A118: 79094119219 | B118: 0 | D118: 79094119219 | E118: SocApteka | F118: Доставлено | G118: 2022-12-01T11:53:29 | H118: 2022-12-01T11:53:29 | I118: Россия | J118: Beeline | K118: В 10 раз больше бонусов за покупку 3 дня до и 3 дня после ДНЯ РОЖДЕНИЯ | L118: 1
A119: 79682749436 | B119: 0 | D119: 79682749436 | E119: SocApteka | F119: Доставлено | G119: 2022-12-01T11:53:29 | H119: 2022-12-01T11:53:29 | I119: Россия | J119: Beeline | K119: В 10 раз больше бонусов за покупку 3 дня до и 3 дня после ДНЯ РОЖДЕНИЯ | L119: 1
A120: 79026570599 | B120: 0 | D120: 79026570599 | E120: SocApteka | F120: Доставлено | G120: 2022-12-01T11:53:29 | H120: 2022-12-01T11:53:29 | I120: Россия | J120: Tele2 Russia | K120: В 10 раз больше бонусов за покупку 3 дня до и 3 дня после ДНЯ РОЖДЕНИЯ | L120: 1
A121: 79616846789 | B121: 0 | D121: 79616846789 | E121: SocApteka | F121: Доставлено | G121: 2022-12-01T11:53:29 | H121: 2022-12-01T11:53:29 | I121: Россия | J121: Beeline | K121: В 10 раз больше бонусов за покупку 3 дня до и 3 дня после ДНЯ РОЖДЕНИЯ | L121: 1
A122: 79094169505 | B122: 0 | D122: 79094169505 | E122: SocApteka | F122: Доставлено | G122: 2022-12-01T11:53:29 | H122: 2022-12-01T11:53:29 | I122: Россия | J122: Beeline | K122: В 10 раз больше бонусов за покупку 3 дня до и 3 дня после ДНЯ РОЖДЕНИЯ | L122: 1
A123: 79094024952 | B123: 0 | D123: 79094024952 | E123: SocApteka | F123: Доставлено | G123: 2022-12-01T11:53:29 | H123: 2022-12-01T11:53:29 | I123: Россия | J123: Beeline | K123: В 10 раз больше бонусов за покупку 3 дня до и 3 дня после ДНЯ РОЖДЕНИЯ | L123: 1
A124: 79381157316 | B124: 0 | D124: 79381157316 | E124: SocApteka | F124: Доставлено | G124: 2022-12-01T11:53:29 | H124: 2022-12-01T11:53:29 | I124: Россия | J124: MegaFon | K124: В 10 раз больше бонусов за покупку 3 дня до и 3 дня после ДНЯ РОЖДЕНИЯ | L124: 1
A125: 79515004569 | B125: 0 | D125: 79515004569 | E125: SocApteka | F125: Доставлено | G125: 2022-12-01T11:53:29 | H125: 2022-12-01T11:53:29 | I125: Россия | J125: Tele2 Russia | K125: В 10 раз больше бонусов за покупку 3 дня до и 3 дня после ДНЯ РОЖДЕНИЯ | L125: 1
A126: 79289007106 | B126: 0 | D126: 79289007106 | E126: SocApteka | F126: Доставлено | G126: 2022-12-01T11:53:29 | H126: 2022-12-01T11:53:29 | I126: Россия | J126: MegaFon | K126: В 10 раз больше бонусов за покупку 3 дня до и 3 дня после ДНЯ РОЖДЕНИЯ | L126: 1
A127: 79081968698 | B127: 0 | D127: 79081968698 | E127: SocApteka | F127: Доставлено | G127: 2022-12-01T11:53:29 | H127: 2022-12-01T11:53:29 | I127: Россия | J127: Tele2 Russia | K127: В 10 раз больше бонусов за покупку 3 дня до и 3 дня после ДНЯ РОЖДЕНИЯ | L127: 1
A128: 79525769653 | B128: 0 | D128: 79525769653 | E128: SocApteka | F128: Доставлено | G128: 2022-12-01T11:53:29 | H128: 2022-12-01T11:53:29 | I128: Россия | J128: Tele2 Russia | K128: В 10 раз больше бонусов за покупку 3 дня до и 3 дня после ДНЯ РОЖДЕНИЯ | L128: 1
A129: 79064160880 | B129: 0 | D129: 79064160880 | E129: SocApteka | F129: Доставлено | G129: 2022-12-01T11:53:29 | H129: 2022-12-01T11:53:29 | I129: Россия | J129: Beeline | K129: В 10 раз больше бонусов за покупку 3 дня до и 3 дня после ДНЯ РОЖДЕНИЯ | L129: 1
A130: 79281857425 | B130: 0 | D130: 79281857425 | E130: SocApteka | F130: Доставлено | G130: 2022-12-01T11:53:29 | H130: 2022-12-01T11:53:29 | I130: Россия | J130: MegaFon | K130: В 10 раз больше бонусов за покупку 3 дня до и 3 дня после ДНЯ РОЖДЕНИЯ | L130: 1
A131: 79085117977 | B131: 0 | D131: 79085117977 | E131: SocApteka | F131: Доставлено | G131: 2022-12-01T11:53:29 | H131: 2022-12-01T11:53:29 | I131: Россия | J131: Tele2 Russia | K131: В 10 раз больше бонусов за покупку 3 дня до и 3 дня после ДНЯ РОЖДЕНИЯ | L131: 1
A132: 79286132195 | B132: 0 | D132: 79286132195 | E132: SocApteka | F132: Доставлено | G132: 2022-12-01T11:53:29 | H132: 2022-12-01T11:53:29 | I132: Россия | J132: MegaFon | K132: В 10 раз больше бонусов за покупку 3 дня до и 3 дня после ДНЯ РОЖДЕНИЯ | L132: 1
A133: 79649014311 | B133: 0 | D133: 79649014311 | E133: SocApteka | F133: Доставлено | G133: 2022-12-01T11:53:29 | H133: 2022-12-01T11:53:29 | I133: Россия | J133: Beeline | K133: В 10 раз больше бонусов за покупку 3 дня до и 3 дня после ДНЯ РОЖДЕНИЯ | L133: 1
A134: =D134*1 -> 79281730333 | B134: 0 | D134: 79281730333 | E134: SocApteka | F134: Доставлено | G134: 2022-12-01T11:53:29 | H134: 2022-12-01T11:53:29 | I134: Россия | J134: MegaFon | K134: В 10 раз больше бонусов за покупку 3 дня до и 3 дня после ДНЯ РОЖДЕНИЯ | L134: 1
A135: 79281330381 | B135: 0 | D135: 79281330381 | E135: SocApteka | F135: Доставлено | G135: 2022-12-01T11:53:29 | H135: 2022-12-01T11:53:29 | I135: Россия | J135: MegaFon | K135: В 10 раз больше бонусов за покупку 3 дня до и 3 дня после ДНЯ РОЖДЕНИЯ | L135: 1
A136: 79047782118 | B136: 0 | D136: 79047782118 | E136: SocApteka | F136: Доставлено | G136: 2022-12-01T11:53:29 | H136: 2022-12-01T11:53:29 | I136: Россия | J136: Tele2 Russia | K136: В 10 раз больше бонусов за покупку 3 дня до и 3 дня после ДНЯ РОЖДЕНИЯ | L136: 1
A137: 79613116335 | B137: 0 | D137: 79613116335 | E137: SocApteka | F137: Доставлено | G137: 2022-12-01T11:53:29 | H137: 2022-12-01T11:53:29 | I137: Россия | J137: Beeline | K137: В 10 раз больше бонусов за покупку 3 дня до и 3 дня после ДНЯ РОЖДЕНИЯ | L137: 1
A138: 79034349535 | B138: 0 | D138: 79034349535 | E138: SocApteka | F138: Доставлено | G138: 2022-12-01T11:53:29 | H138: 2022-12-01T11:53:29 | I138: Россия | J138: Beeline | K138: В 10 раз больше бонусов за покупку 3 дня до и 3 дня после ДНЯ РОЖДЕНИЯ | L138: 1
A139: 79613245402 | B139: 0 | D139: 79613245402 | E139: SocApteka | F139: Доставлено | G139: 2022-12-01T11:53:29 | H139: 2022-12-01T11:53:29 | I139: Россия | J139: Beeline | K139: В 10 раз больше бонусов за покупку 3 дня до и 3 дня после ДНЯ РОЖДЕНИЯ | L139: 1
A140: 79038606654 | B140: 0 | D140: 79038606654 | E140: SocApteka | F140: Доставлено | G140: 2022-12-01T11:53:29 | H140: 2022-12-01T11:53:29 | I140: Россия | J140: Beeline | K140: В 10 раз больше бонусов за покупку 3 дня до и 3 дня после ДНЯ РОЖДЕНИЯ | L140: 1
A141: 79281302982 | B141: 0 | D141: 79281302982 | E141: SocApteka | F141: Доставлено | G141: 2022-12-01T11:53:29 | H141: 2022-12-01T11:53:29 | I141: Россия | J141: MegaFon | K141: В 10 раз больше бонусов за покупку 3 дня до и 3 дня после ДНЯ РОЖДЕНИЯ | L141: 1
A142: 79515092035 | B142: 0 | D142: 79515092035 | E142: SocApteka | F142: Доставлено | G142: 2022-12-01T11:53:29 | H142: 2022-12-01T11:53:29 | I142: Россия | J142: Tele2 Russia | K142: В 10 раз больше бонусов за покупку 3 дня до и 3 дня после ДНЯ РОЖДЕНИЯ | L142: 1
A143: 79614888908 | B143: 0 | D143: 79614888908 | E143: SocApteka | F143: Доставлено | G143: 2022-12-01T11:53:29 | H143: 2022-12-01T11:53:29 | I143: Россия | J143: Beeline | K143: В 10 раз больше бонусов за покупку 3 дня до и 3 дня после ДНЯ РОЖДЕНИЯ | L143: 1
A144: 79527536798 | B144: 0 | D144: 79527536798 | E144: SocApteka | F144: Доставлено | G144: 2022-12-01T11:53:29 | H144: 2022-12-01T11:53:29 | I144: Россия | J144: Tele2 Russia | K144: В 10 раз больше бонусов за покупку 3 дня до и 3 дня после ДНЯ РОЖДЕНИЯ | L144: 1
A145: 79034060109 | B145: 0 | D145: 79034060109 | E145: SocApteka | F145: Доставлено | G145: 2022-12-01T11:53:29 | H145: 2022-12-01T11:53:29 | I145: Россия | J145: Beeline | K145: В 10 раз больше бонусов за покупку 3 дня до и 3 дня после ДНЯ РОЖДЕНИЯ | L145: 1
A146: 79667670310 | B146: 0 | D146: 79667670310 | E146: SocApteka | F146: Доставлено | G146: 2022-12-01T11:53:29 | H146: 2022-12-01T11:53:29 | I146: Россия | J146: Beeline | K146: В 10 раз больше бонусов за покупку 3 дня до и 3 дня после ДНЯ РОЖДЕНИЯ | L146: 1
A147: 79043472324 | B147: 0 | D147: 79043472324 | E147: SocApteka | F147: Доставлено | G147: 2022-12-01T11:53:29 | H147: 2022-12-01T11:53:29 | I147: Россия | J147: Tele2 Russia | K147: В 10 раз больше бонусов за покупку 3 дня до и 3 дня после ДНЯ РОЖДЕНИЯ | L147: 1
A148: 79604500204 | B148: 0 | D148: 79604500204 | E148: SocApteka | F148: Доставлено | G148: 2022-12-01T11:53:29 | H148: 2022-12-01T11:53:29 | I148: Россия | J148: Beeline | K148: В 10 раз больше бонусов за покупку 3 дня до и 3 дня после ДНЯ РОЖДЕНИЯ | L148: 1
A149: 79614855550 | B149: 0 | D149: 79614855550 | E149: SocApteka | F149: Доставлено | G149: 2022-12-01T11:53:29 | H149: 2022-12-01T11:53:29 | I149: Россия | J149: Beeline | K149: В 10 раз больше бонусов за покупку 3 дня до и 3 дня после ДНЯ РОЖДЕНИЯ | L149: 1
A150: 79298297359 | B150: 0 | D150: 79298297359 | E150: SocApteka | F150: Доставлено | G150: 2022-12-01T11:53:29 | H150: 2022-12-01T11:53:29 | I150: Россия | J150: MegaFon | K150: В 10 раз больше бонусов за покупку 3 дня до и 3 дня после ДНЯ РОЖДЕНИЯ | L150: 1
A151: 79279794666 | B151: 0 | D151: 79279794666 | E151: SocApteka | F151: Доставлено | G151: 2022-12-01T11:53:29 | H151: 2022-12-01T11:53:29 | I151: Россия | J151: MegaFon | K151: В 10 раз больше бонусов за покупку 3 дня до и 3 дня после ДНЯ РОЖДЕНИЯ | L151: 1
A152: 79518513447 | B152: 0 | D152: 79518513447 | E152: SocApteka | F152: Доставлено | G152: 2022-12-01T11:53:29 | H152: 2022-12-01T11:53:29 | I152: Россия | J152: Tele2 Russia | K152: В 10 раз больше бонусов за покупку 3 дня до и 3 дня после ДНЯ РОЖДЕНИЯ | L152: 1
A153: 79093811730 | B153: 0 | D153: 79093811730 | E153: SocApteka | F153: Доставлено | G153: 2022-12-01T11:53:29 | H153: 2022-12-01T11:53:29 | I153: Россия | J153: Beeline | K153: В 10 раз больше бонусов за покупку 3 дня до и 3 дня после ДНЯ РОЖДЕНИЯ | L153: 1
A154: 79608860412 | B154: 0 | D154: 79608860412 | E154: SocApteka | F154: Доставлено | G154: 2022-12-01T11:53:29 | H154: 2022-12-01T11:53:29 | I154: Россия | J154: Tele2 Russia | K154: В 10 раз больше бонусов за покупку 3 дня до и 3 дня после ДНЯ РОЖДЕНИЯ | L154: 1
A155: 79102806482 | B155: 0 | D155: 79102806482 | E155: SocApteka | F155: Доставлено | G155: 2022-12-01T11:53:29 | H155: 2022-12-01T11:53:29 | I155: Россия | J155: Tele2 Russia | K155: В 10 раз больше бонусов за покупку 3 дня до и 3 дня после ДНЯ РОЖДЕНИЯ | L155: 1
A156: 79614369416 | B156: 0 | D156: 79614369416 | E156: SocApteka | F156: Доставлено | G156: 2022-12-01T11:53:29 | H156: 2022-12-01T11:53:29 | I156: Россия | J156: Beeline | K156: В 10 раз больше бонусов за покупку 3 дня до и 3 дня после ДНЯ РОЖДЕНИЯ | L156: 1
A157: 79081389944 | B157: 0 | D157: 79081389944 | E157: SocApteka | F157: Доставлено | G157: 2022-12-01T11:53:29 | H157: 2022-12-01T11:53:29 | I157: Россия | J157: Tele2 Russia | K157: В 10 раз больше бонусов за покупку 3 дня до и 3 дня после ДНЯ РОЖДЕНИЯ | L157: 1
A158: 79286237058 | B158: 0 | D158: 79286237058 | E158: SocApteka | F158: Доставлено | G158: 2022-12-01T11:53:29 | H158: 2022-12-01T11:53:29 | I158: Россия | J158: MegaFon | K158: В 10 раз больше бонусов за покупку 3 дня до и 3 дня после ДНЯ РОЖДЕНИЯ | L158: 1
A159: 79042122009 | B159: 0 | D159: 79042122009 | E159: SocApteka | F159: Доставлено | G159: 2022-12-01T11:53:29 | H159: 2022-12-01T11:53:29 | I159: Россия | J159: Tele2 Russia | K159: В 10 раз больше бонусов за покупку 3 дня до и 3 дня после ДНЯ РОЖДЕНИЯ | L159: 1
A160: 79094238382 | B160: 0 | D160: 79094238382 | E160: SocApteka | F160: Доставлено | G160: 2022-12-01T11:53:29 | H160: 2022-12-01T11:53:29 | I160: Россия | J160: Beeline | K160: В 10 раз больше бонусов за покупку 3 дня до и 3 дня после ДНЯ РОЖДЕНИЯ | L160: 1
A161: 79061722723 | B161: 0 | D161: 79061722723 | E161: SocApteka | F161: Доставлено | G161: 2022-12-01T11:53:29 | H161: 2022-12-01T11:53:29 | I161: Россия | J161: Beeline | K161: В 10 раз больше бонусов за покупку 3 дня до и 3 дня после ДНЯ РОЖДЕНИЯ | L161: 1
A162: 79044488102 | B162: 0 | D162: 79044488102 | E162: SocApteka | F162: Доставлено | G162: 2022-12-01T11:53:29 | H162: 2022-12-01T11:53:29 | I162: Россия | J162: Tele2 Russia | K162: В 10 раз больше бонусов за покупку 3 дня до и 3 дня после ДНЯ РОЖДЕНИЯ | L162: 1
A163: 79616920413 | B163: 0 | D163: 79616920413 | E163: SocApteka | F163: Доставлено | G163: 2022-12-01T11:53:29 | H163: 2022-12-01T11:53:29 | I163: Россия | J163: Beeline | K163: В 10 раз больше бонусов за покупку 3 дня до и 3 дня после ДНЯ РОЖДЕНИЯ | L163: 1
A164: 79034096062 | B164: 0 | D164: 79034096062 | E164: SocApteka | F164: Просрочено | G164: 2022-12-01T11:53:29 | H164: 2022-12-01T11:53:29 | I164: Россия | J164: Beeline | K164: В 10 раз больше бонусов за покупку 3 дня до и 3 дня после ДНЯ РОЖДЕНИЯ | L164: 0
A165: 79613053353 | B165: 0 | D165: 79613053353 | E165: SocApteka | F165: Доставлено | G165: 2022-12-01T11:53:29 | H165: 2022-12-01T11:53:29 | I165: Россия | J165: Beeline | K165: В 10 раз больше бонусов за покупку 3 дня до и 3 дня после ДНЯ РОЖДЕНИЯ | L165: 1
A166: 79383104859 | B166: 0 | D166: 79383104859 | E166: SocApteka | F166: Доставлено | G166: 2022-12-01T11:53:29 | H166: 2022-12-01T11:53:29 | I166: Россия | J166: MegaFon | K166: В 10 раз больше бонусов за покупку 3 дня до и 3 дня после ДНЯ РОЖДЕНИЯ | L166: 1
A167: 79054545359 | B167: 0 | D167: 79054545359 | E167: SocApteka | F167: Доставлено | G167: 2022-12-01T11:53:29 | H167: 2022-12-01T11:53:29 | I167: Россия | J167: Beeline | K167: В 10 раз больше бонусов за покупку 3 дня до и 3 дня после ДНЯ РОЖДЕНИЯ | L167: 1
A168: 79604600183 | B168: 0 | D168: 79604600183 | E168: SocApteka | F168: Доставлено | G168: 2022-12-01T11:53:29 | H168: 2022-12-01T11:53:29 | I168: Россия | J168: Beeline | K168: В 10 раз больше бонусов за покупку 3 дня до и 3 дня после ДНЯ РОЖДЕНИЯ | L168: 1
A169: 79181267484 | B169: 0 | D169: 79181267484 | E169: SocApteka | F169: Доставлено | G169: 2022-12-01T11:53:29 | H169: 2022-12-01T11:53:29 | I169: Россия | J169: Beeline | K169: В 10 раз больше бонусов за покупку 3 дня до и 3 дня после ДНЯ РОЖДЕНИЯ | L169: 1
A170: 79524241400 | B170: 0 | D170: 79524241400 | E170: SocApteka | F170: Доставлено | G170: 2022-12-01T11:53:29 | H170: 2022-12-01T11:53:29 | I170: Россия | J170: Tele2 Russia | K170: В 10 раз больше бонусов за покупку 3 дня до и 3 дня после ДНЯ РОЖДЕНИЯ | L170: 1
A171: 79624454792 | B171: 0 | D171: 79624454792 | E171: SocApteka | F171: Доставлено | G171: 2022-12-01T11:53:29 | H171: 2022-12-01T11:53:29 | I171: Россия | J171: Beeline | K171: В 10 раз больше бонусов за покупку 3 дня до и 3 дня после ДНЯ РОЖДЕНИЯ | L171: 1
A172: 79287788598 | B172: 0 | D172: 79287788598 | E172: SocApteka | F172: Доставлено | G172: 2022-12-01T11:53:29 | H172: 2022-12-01T11:53:29 | I172: Россия | J172: MegaFon | K172: В 10 раз больше бонусов за покупку 3 дня до и 3 дня после ДНЯ РОЖДЕНИЯ | L172: 1
A173: 79624575726 | B173: 0 | D173: 79624575726 | E173: SocApteka | F173: Доставлено | G173: 2022-12-01T11:53:29 | H173: 2022-12-01T11:53:29 | I173: Россия | J173: Beeline | K173: В 10 раз больше бонусов за покупку 3 дня до и 3 дня после ДНЯ РОЖДЕНИЯ | L173: 1
A174: 79034198014 | B174: 0 | D174: 79034198014 | E174: SocApteka | F174: Доставлено | G174: 2022-12-01T11:53:30 | H174: 2022-12-01T11:53:30 | I174: Россия | J174: Beeline | K174: В 10 раз больше бонусов за покупку 3 дня до и 3 дня после ДНЯ РОЖДЕНИЯ | L174: 1
A175: 79085033129 | B175: 0 | D175: 79085033129 | E175: SocApteka | F175: Доставлено | G175: 2022-12-01T11:53:30 | H175: 2022-12-01T11:53:30 | I175: Россия | J175: Tele2 Russia | K175: В 10 раз больше бонусов за покупку 3 дня до и 3 дня после ДНЯ РОЖДЕНИЯ | L175: 1
A176: 79281845590 | B176: 0 | D176: 79281845590 | E176: SocApteka | F176: Доставлено | G176: 2022-12-01T11:53:30 | H176: 2022-12-01T11:53:30 | I176: Россия | J176: MegaFon | K176: В 10 раз больше бонусов за покупку 3 дня до и 3 дня после ДНЯ РОЖДЕНИЯ | L176: 1
A177: 79081463975 | B177: 0 | D177: 79081463975 | E177: SocApteka | F177: Доставлено | G177: 2022-12-01T11:53:30 | H177: 2022-12-01T11:53:30 | I177: Россия | J177: Tele2 Russia | K177: В 10 раз больше бонусов за покупку 3 дня до и 3 дня после ДНЯ РОЖДЕНИЯ | L177: 1
A178: 79507771125 | B178: 0 | D178: 79507771125 | E178: SocApteka | F178: Доставлено | G178: 2022-12-01T11:53:30 | H178: 2022-12-01T11:53:30 | I178: Россия | J178: Tele2 Russia | K178: В 10 раз больше бонусов за покупку 3 дня до и 3 дня после ДНЯ РОЖДЕНИЯ | L178: 1
A179: 79178351203 | B179: 0 | D179: 79178351203 | E179: SocApteka | F179: Доставлено | G179: 2022-12-01T11:53:30 | H179: 2022-12-01T11:53:30 | I179: Россия | J179: Beeline | K179: В 10 раз больше бонусов за покупку 3 дня до и 3 дня после ДНЯ РОЖДЕНИЯ | L179: 1
A180: 79081987881 | B180: 0 | D180: 79081987881 | E180: SocApteka | F180: Доставлено | G180: 2022-12-01T11:53:30 | H180: 2022-12-01T11:53:30 | I180: Россия | J180: Tele2 Russia | K180: В 10 раз больше бонусов за покупку 3 дня до и 3 дня после ДНЯ РОЖДЕНИЯ | L180: 1
A181: 79612922231 | B181: 0 | D181: 79612922231 | E181: SocApteka | F181: Доставлено | G181: 2022-12-01T11:53:30 | H181: 2022-12-01T11:53:30 | I181: Россия | J181: Beeline | K181: В 10 раз больше бонусов за покупку 3 дня до и 3 дня после ДНЯ РОЖДЕНИЯ | L181: 1
A182: 79094064888 | B182: 0 | D182: 79094064888 | E182: SocApteka | F182: Доставлено | G182: 2022-12-01T11:53:30 | H182: 2022-12-01T11:53:30 | I182: Россия | J182: Beeline | K182: В 10 раз больше бонусов за покупку 3 дня до и 3 дня после ДНЯ РОЖДЕНИЯ | L182: 1
A183: 79081466628 | B183: 0 | D183: 79081466628 | E183: SocApteka | F183: Доставлено | G183: 2022-12-01T11:53:30 | H183: 2022-12-01T11:53:30 | I183: Россия | J183: Tele2 Russia | K183: В 10 раз больше бонусов за покупку 3 дня до и 3 дня после ДНЯ РОЖДЕНИЯ | L183: 1
A184: 79287553777 | B184: 0 | D184: 79287553777 | E184: SocApteka | F184: Доставлено | G184: 2022-12-01T11:53:30 | H184: 2022-12-01T11:53:30 | I184: Россия | J184: MegaFon | K184: В 10 раз больше бонусов за покупку 3 дня до и 3 дня после ДНЯ РОЖДЕНИЯ | L184: 1
A185: 79009513902 | B185: 0 | D185: 79009513902 | E185: SocApteka | F185: Доставлено | G185: 2022-12-01T11:53:30 | H185: 2022-12-01T11:53:30 | I185: Россия | J185: Tele2 Russia | K185: В 10 раз больше бонусов за покупку 3 дня до и 3 дня после ДНЯ РОЖДЕНИЯ | L185: 1
A186: 79275243332 | B186: 0 | D186: 79275243332 | E186: SocApteka | F186: Доставлено | G186: 2022-12-01T11:53:30 | H186: 2022-12-01T11:53:30 | I186: Россия | J186: MegaFon | K186: В 10 раз больше бонусов за покупку 3 дня до и 3 дня после ДНЯ РОЖДЕНИЯ | L186: 1
A187: 79508600806 | B187: 0 | D187: 79508600806 | E187: SocApteka | F187: Доставлено | G187: 2022-12-01T11:53:30 | H187: 2022-12-01T11:53:30 | I187: Россия | J187: Tele2 Russia | K187: В 10 раз больше бонусов за покупку 3 дня до и 3 дня после ДНЯ РОЖДЕНИЯ | L187: 1
A188: 79045072004 | B188: 0 | D188: 79045072004 | E188: SocApteka | F188: Просрочено | G188: 2022-12-01T11:53:30 | H188: 2022-12-01T11:53:30 | I188: Россия | J188: Tele2 Russia | K188: В 10 раз больше бонусов за покупку 3 дня до и 3 дня после ДНЯ РОЖДЕНИЯ | L188: 0
A189: 79034305599 | B189: 0 | D189: 79034305599 | E189: SocApteka | F189: Доставлено | G189: 2022-12-01T11:53:30 | H189: 2022-12-01T11:53:30 | I189: Россия | J189: Beeline | K189: В 10 раз больше бонусов за покупку 3 дня до и 3 дня после ДНЯ РОЖДЕНИЯ | L189: 1
A190: 79045067747 | B190: 0 | D190: 79045067747 | E190: SocApteka | F190: Доставлено | G190: 2022-12-01T11:53:30 | H190: 2022-12-01T11:53:30 | I190: Россия | J190: Tele2 Russia | K190: В 10 раз больше бонусов за покупку 3 дня до и 3 дня после ДНЯ РОЖДЕНИЯ | L190: 1
A191: 79281098140 | B191: 0 | D191: 79281098140 | E191: SocApteka | F191: Доставлено | G191: 2022-12-01T11:53:30 | H191: 2022-12-01T11:53:30 | I191: Россия | J191: MegaFon | K191: В 10 раз больше бонусов за покупку 3 дня до и 3 дня после ДНЯ РОЖДЕНИЯ | L191: 1
A192: 79054414327 | B192: 0 | D192: 79054414327 | E192: SocApteka | F192: Доставлено | G192: 2022-12-01T11:53:30 | H192: 2022-12-01T11:53:30 | I192: Россия | J192: Beeline | K192: В 10 раз больше бонусов за покупку 3 дня до и 3 дня после ДНЯ РОЖДЕНИЯ | L192: 1
A193: 79281886321 | B193: 0 | D193: 79281886321 | E193: SocApteka | F193: Доставлено | G193: 2022-12-01T11:53:30 | H193: 2022-12-01T11:53:30 | I193: Россия | J193: MegaFon | K193: В 10 раз больше бонусов за покупку 3 дня до и 3 дня после ДНЯ РОЖДЕНИЯ | L193: 1
A194: 79518747288 | B194: 0 | D194: 79518747288 | E194: SocApteka | F194: Доставлено | G194: 2022-12-01T11:53:30 | H194: 2022-12-01T11:53:30 | I194: Россия | J194: Tele2 Russia | K194: В 10 раз больше бонусов за покупку 3 дня до и 3 дня после ДНЯ РОЖДЕНИЯ | L194: 1
A195: 79999652874 | B195: 0 | D195: 79999652874 | E195: SocApteka | F195: Доставлено | G195: 2022-12-01T11:53:30 | H195: 2022-12-01T11:53:30 | I195: Россия | J195: Скартел (YOTA) | K195: В 10 раз больше бонусов за покупку 3 дня до и 3 дня после ДНЯ РОЖДЕНИЯ | L195: 1
A196: 79525501429 | B196: 0 | D196: 79525501429 | E196: SocApteka | F196: Доставлено | G196: 2022-12-01T11:53:30 | H196: 2022-12-01T11:53:30 | I196: Россия | J196: Tele2 Russia | K196: В 10 раз больше бонусов за покупку 3 дня до и 3 дня после ДНЯ РОЖДЕНИЯ | L196: 1
A197: 79094327202 | B197: 0 | D197: 79094327202 | E197: SocApteka | F197: Доставлено | G197: 2022-12-01T11:53:30 | H197: 2022-12-01T11:53:30 | I197: Россия | J197: Beeline | K197: В 10 раз больше бонусов за покупку 3 дня до и 3 дня после ДНЯ РОЖДЕНИЯ | L197: 1
A198: =D198*1 -> 79289055833 | B198: 0 | D198: 79289055833 | E198: SocApteka | F198: Доставлено | G198: 2022-12-01T11:53:30 | H198: 2022-12-01T11:53:30 | I198: Россия | J198: MegaFon | K198: В 10 раз больше бонусов за покупку 3 дня до и 3 дня после ДНЯ РОЖДЕНИЯ | L198: 1
A199: 79526096181 | B199: 0 | D199: 79526096181 | E199: SocApteka | F199: Доставлено | G199: 2022-12-01T11:53:30 | H199: 2022-12-01T11:53:30 | I199: Россия | J199: Tele2 Russia | K199: В 10 раз больше бонусов за покупку 3 дня до и 3 дня после ДНЯ РОЖДЕНИЯ | L199: 1
A200: 79281320547 | B200: 0 | D200: 79281320547 | E200: SocApteka | F200: Доставлено | G200: 2022-12-01T11:53:30 | H200: 2022-12-01T11:53:30 | I200: Россия | J200: MegaFon | K200: В 10 раз больше бонусов за покупку 3 дня до и 3 дня после ДНЯ РОЖДЕНИЯ | L200: 1
... 4300 more rows

Sheet куб
B4: Контактов шт | H4: Контактов шт
B5: Маркетинговый Список | C5: Телефон | D5: Итог | E5: Метка | H5: Маркетинговый Список | I5: Итог
A6: =C6*1 -> 79000015381 | B6: СоцАп День рождения х10Б_2 12.2022 СМС Доставлено | C6: +79000015381 | D6: 1 | E6: 1 | H6: СоцАп День рождения х10Б_2 12.2022 СМС Доставлено | I6: 66940
A7: =C7*1 -> 79000861600 | B7: СоцАп День рождения х10Б_2 12.2022 СМС Доставлено | C7: +79000861600 | D7: 1 | E7: 1
A8: 79000998952 | B8: СоцАп День рождения х10Б_2 12.2022 СМС Доставлено | C8: +79000998952 | D8: 1 | E8: 1
A9: 79001132401 | B9: СоцАп День рождения х10Б_2 12.2022 СМС Доставлено | C9: +79001132401 | D9: 1 | E9: 1
A10: 79001200177 | B10: СоцАп День рождения х10Б_2 12.2022 СМС Доставлено | C10: +79001200177 | D10: 1 | E10: 1
A11: 79001200588 | B11: СоцАп День рождения х10Б_2 12.2022 СМС Доставлено | C11: +79001200588 | D11: 1 | E11: 1
A12: 79001200783 | B12: СоцАп День рождения х10Б_2 12.2022 СМС Доставлено | C12: +79001200783 | D12: 1 | E12: 1
A13: 79001200960 | B13: СоцАп День рождения х10Б_2 12.2022 СМС Доставлено | C13: +79001200960 | D13: 1 | E13: 1
A14: 79001201224 | B14: СоцАп День рождения х10Б_2 12.2022 СМС Доставлено | C14: +79001201224 | D14: 1 | E14: 1
A15: 79001201555 | B15: СоцАп День рождения х10Б_2 12.2022 СМС Доставлено | C15: +79001201555 | D15: 1 | E15: 1
A16: 79001202473 | B16: СоцАп День рождения х10Б_2 12.2022 СМС Доставлено | C16: +79001202473 | D16: 1 | E16: 1
A17: 79001205436 | B17: СоцАп День рождения х10Б_2 12.2022 СМС Доставлено | C17: +79001205436 | D17: 1 | E17: 1
A18: 79001205854 | B18: СоцАп День рождения х10Б_2 12.2022 СМС Доставлено | C18: +79001205854 | D18: 1 | E18: 1
A19: 79001205904 | B19: СоцАп День рождения х10Б_2 12.2022 СМС Доставлено | C19: +79001205904 | D19: 1 | E19: 1
A20: 79001206126 | B20: СоцАп День рождения х10Б_2 12.2022 СМС Доставлено | C20: +79001206126 | D20: 1 | E20: 1
A21: 79001206456 | B21: СоцАп День рождения х10Б_2 12.2022 СМС Доставлено | C21: +79001206456 | D21: 1 | E21: 1
A22: 79001207272 | B22: СоцАп День рождения х10Б_2 12.2022 СМС Доставлено | C22: +79001207272 | D22: 1 | E22: 1
A23: 79001207521 | B23: СоцАп День рождения х10Б_2 12.2022 СМС Доставлено | C23: +79001207521 | D23: 1 | E23: 1
A24: 79001208333 | B24: СоцАп День рождения х10Б_2 12.2022 СМС Доставлено | C24: +79001208333 | D24: 1 | E24: 1
A25: 79001208501 | B25: СоцАп День рождения х10Б_2 12.2022 СМС Доставлено | C25: +79001208501 | D25: 1 | E25: 1
A26: 79001208676 | B26: СоцАп День рождения х10Б_2 12.2022 СМС Доставлено | C26: +79001208676 | D26: 1 | E26: 1
A27: 79001209313 | B27: СоцАп День рождения х10Б_2 12.2022 СМС Доставлено | C27: +79001209313 | D27: 1 | E27: 1
A28: 79001210092 | B28: СоцАп День рождения х10Б_2 12.2022 СМС Доставлено | C28: +79001210092 | D28: 1 | E28: 1
A29: 79001210350 | B29: СоцАп День рождения х10Б_2 12.2022 СМС Доставлено | C29: +79001210350 | D29: 1 | E29: 1
A30: 79001210517 | B30: СоцАп День рождения х10Б_2 12.2022 СМС Доставлено | C30: +79001210517 | D30: 1 | E30: 1
A31: 79001210608 | B31: СоцАп День рождения х10Б_2 12.2022 СМС Доставлено | C31: +79001210608 | D31: 1 | E31: 1
A32: 79001211300 | B32: СоцАп День рождения х10Б_2 12.2022 СМС Доставлено | C32: +79001211300 | D32: 1 | E32: 1
A33: 79001211961 | B33: СоцАп День рождения х10Б_2 12.2022 СМС Доставлено | C33: +79001211961 | D33: 1 | E33: 1
A34: 79001212182 | B34: СоцАп День рождения х10Б_2 12.2022 СМС Доставлено | C34: +79001212182 | D34: 1 | E34: 1
A35: 79001212415 | B35: СоцАп День рождения х10Б_2 12.2022 СМС Доставлено | C35: +79001212415 | D35: 1 | E35: 1
A36: 79001213645 | B36: СоцАп День рождения х10Б_2 12.2022 СМС Доставлено | C36: +79001213645 | D36: 1 | E36: 1
A37: 79001214011 | B37: СоцАп День рождения х10Б_2 12.2022 СМС Доставлено | C37: +79001214011 | D37: 1 | E37: 1
A38: 79001216700 | B38: СоцАп День рождения х10Б_2 12.2022 СМС Доставлено | C38: +79001216700 | D38: 1 | E38: 1
A39: 79001218466 | B39: СоцАп День рождения х10Б_2 12.2022 СМС Доставлено | C39: +79001218466 | D39: 1 | E39: 1
A40: 79001220330 | B40: СоцАп День рождения х10Б_2 12.2022 СМС Доставлено | C40: +79001220330 | D40: 1 | E40: 1
A41: 79001221520 | B41: СоцАп День рождения х10Б_2 12.2022 СМС Доставлено | C41: +79001221520 | D41: 1 | E41: 1
A42: 79001221558 | B42: СоцАп День рождения х10Б_2 12.2022 СМС Доставлено | C42: +79001221558 | D42: 1 | E42: 1
A43: 79001221944 | B43: СоцАп День рождения х10Б_2 12.2022 СМС Доставлено | C43: +79001221944 | D43: 1 | E43: 1
A44: 79001221949 | B44: СоцАп День рождения х10Б_2 12.2022 СМС Доставлено | C44: +79001221949 | D44: 1 | E44: 1
A45: 79001222037 | B45: СоцАп День рождения х10Б_2 12.2022 СМС Доставлено | C45: +79001222037 | D45: 1 | E45: 1
A46: 79001222091 | B46: СоцАп День рождения х10Б_2 12.2022 СМС Доставлено | C46: +79001222091 | D46: 1 | E46: 1
A47: 79001222155 | B47: СоцАп День рождения х10Б_2 12.2022 СМС Доставлено | C47: +79001222155 | D47: 1 | E47: 1
A48: 79001222883 | B48: СоцАп День рождения х10Б_2 12.2022 СМС Доставлено | C48: +79001222883 | D48: 1 | E48: 1
A49: 79001223010 | B49: СоцАп День рождения х10Б_2 12.2022 СМС Доставлено | C49: +79001223010 | D49: 1 | E49: 1
A50: 79001223638 | B50: СоцАп День рождения х10Б_2 12.2022 СМС Доставлено | C50: +79001223638 | D50: 1 | E50: 1
A51: 79001223899 | B51: СоцАп День рождения х10Б_2 12.2022 СМС Доставлено | C51: +79001223899 | D51: 1 | E51: 1
A52: 79001224777 | B52: СоцАп День рождения х10Б_2 12.2022 СМС Доставлено | C52: +79001224777 | D52: 1 | E52: 1
A53: 79001225520 | B53: СоцАп День рождения х10Б_2 12.2022 СМС Доставлено | C53: +79001225520 | D53: 1 | E53: 1
A54: 79001226207 | B54: СоцАп День рождения х10Б_2 12.2022 СМС Доставлено | C54: +79001226207 | D54: 1 | E54: 1
A55: 79001226224 | B55: СоцАп День рождения х10Б_2 12.2022 СМС Доставлено | C55: +79001226224 | D55: 1 | E55: 1
A56: 79001226663 | B56: СоцАп День рождения х10Б_2 12.2022 СМС Доставлено | C56: +79001226663 | D56: 1 | E56: 1
A57: 79001226953 | B57: СоцАп День рождения х10Б_2 12.2022 СМС Доставлено | C57: +79001226953 | D57: 1 | E57: 1
A58: 79001227034 | B58: СоцАп День рождения х10Б_2 12.2022 СМС Доставлено | C58: +79001227034 | D58: 1 | E58: 1
A59: 79001227355 | B59: СоцАп День рождения х10Б_2 12.2022 СМС Доставлено | C59: +79001227355 | D59: 1 | E59: 1
A60: 79001227594 | B60: СоцАп День рождения х10Б_2 12.2022 СМС Доставлено | C60: +79001227594 | D60: 1 | E60: 1
A61: 79001227649 | B61: СоцАп День рождения х10Б_2 12.2022 СМС Доставлено | C61: +79001227649 | D61: 1 | E61: 1
A62: 79001227882 | B62: СоцАп День рождения х10Б_2 12.2022 СМС Доставлено | C62: +79001227882 | D62: 1 | E62: 1
A63: 79001228606 | B63: СоцАп День рождения х10Б_2 12.2022 СМС Доставлено | C63: +79001228606 | D63: 1 | E63: 1
A64: 79001229399 | B64: СоцАп День рождения х10Б_2 12.2022 СМС Доставлено | C64: +79001229399 | D64: 1 | E64: 1
A65: 79001229767 | B65: СоцАп День рождения х10Б_2 12.2022 СМС Доставлено | C65: +79001229767 | D65: 1 | E65: 1
A66: 79001230160 | B66: СоцАп День рождения х10Б_2 12.2022 СМС Доставлено | C66: +79001230160 | D66: 1 | E66: 1
A67: 79001230203 | B67: СоцАп День рождения х10Б_2 12.2022 СМС Доставлено | C67: +79001230203 | D67: 1 | E67: 1
A68: 79001230330 | B68: СоцАп День рождения х10Б_2 12.2022 СМС Доставлено | C68: +79001230330 | D68: 1 | E68: 1
A69: 79001230635 | B69: СоцАп День рождения х10Б_2 12.2022 СМС Доставлено | C69: +79001230635 | D69: 1 | E69: 1
A70: 79001230946 | B70: СоцАп День рождения х10Б_2 12.2022 СМС Доставлено | C70: +79001230946 | D70: 1 | E70: 1
A71: =C71*1 -> 79001230957 | B71: СоцАп День рождения х10Б_2 12.2022 СМС Доставлено | C71: +79001230957 | D71: 1 | E71: 1
A72: 79001231223 | B72: СоцАп День рождения х10Б_2 12.2022 СМС Доставлено | C72: +79001231223 | D72: 1 | E72: 1
A73: 79001231369 | B73: СоцАп День рождения х10Б_2 12.2022 СМС Доставлено | C73: +79001231369 | D73: 1 | E73: 1
A74: 79001231640 | B74: СоцАп День рождения х10Б_2 12.2022 СМС Доставлено | C74: +79001231640 | D74: 1 | E74: 1
A75: 79001232304 | B75: СоцАп День рождения х10Б_2 12.2022 СМС Доставлено | C75: +79001232304 | D75: 1 | E75: 1
A76: 79001232794 | B76: СоцАп День рождения х10Б_2 12.2022 СМС Доставлено | C76: +79001232794 | D76: 1 | E76: 1
A77: 79001233483 | B77: СоцАп День рождения х10Б_2 12.2022 СМС Доставлено | C77: +79001233483 | D77: 1 | E77: 1
A78: 79001234163 | B78: СоцАп День рождения х10Б_2 12.2022 СМС Доставлено | C78: +79001234163 | D78: 1 | E78: 1
A79: 79001234311 | B79: СоцАп День рождения х10Б_2 12.2022 СМС Доставлено | C79: +79001234311 | D79: 1 | E79: 1
A80: 79001234421 | B80: СоцАп День рождения х10Б_2 12.2022 СМС Доставлено | C80: +79001234421 | D80: 1 | E80: 1
A81: 79001234600 | B81: СоцАп День рождения х10Б_2 12.2022 СМС Доставлено | C81: +79001234600 | D81: 1 | E81: 1
A82: 79001236757 | B82: СоцАп День рождения х10Б_2 12.2022 СМС Доставлено | C82: +79001236757 | D82: 1 | E82: 1
A83: 79001239363 | B83: СоцАп День рождения х10Б_2 12.2022 СМС Доставлено | C83: +79001239363 | D83: 1 | E83: 1
A84: 79001240300 | B84: СоцАп День рождения х10Б_2 12.2022 СМС Доставлено | C84: +79001240300 | D84: 1 | E84: 1
A85: 79001240830 | B85: СоцАп День рождения х10Б_2 12.2022 СМС Доставлено | C85: +79001240830 | D85: 1 | E85: 1
A86: 79001241213 | B86: СоцАп День рождения х10Б_2 12.2022 СМС Доставлено | C86: +79001241213 | D86: 1 | E86: 1
A87: 79001241812 | B87: СоцАп День рождения х10Б_2 12.2022 СМС Доставлено | C87: +79001241812 | D87: 1 | E87: 1
A88: 79001242003 | B88: СоцАп День рождения х10Б_2 12.2022 СМС Доставлено | C88: +79001242003 | D88: 1 | E88: 1
A89: 79001242950 | B89: СоцАп День рождения х10Б_2 12.2022 СМС Доставлено | C89: +79001242950 | D89: 1 | E89: 1
A90: 79001243963 | B90: СоцАп День рождения х10Б_2 12.2022 СМС Доставлено | C90: +79001243963 | D90: 1 | E90: 1
A91: 79001244142 | B91: СоцАп День рождения х10Б_2 12.2022 СМС Доставлено | C91: +79001244142 | D91: 1 | E91: 1
A92: 79001244392 | B92: СоцАп День рождения х10Б_2 12.2022 СМС Доставлено | C92: +79001244392 | D92: 1 | E92: 1
A93: 79001244486 | B93: СоцАп День рождения х10Б_2 12.2022 СМС Доставлено | C93: +79001244486 | D93: 1 | E93: 1
A94: 79001244668 | B94: СоцАп День рождения х10Б_2 12.2022 СМС Доставлено | C94: +79001244668 | D94: 1 | E94: 1
A95: 79001244858 | B95: СоцАп День рождения х10Б_2 12.2022 СМС Доставлено | C95: +79001244858 | D95: 1 | E95: 1
A96: 79001244945 | B96: СоцАп День рождения х10Б_2 12.2022 СМС Доставлено | C96: +79001244945 | D96: 1 | E96: 1
A97: 79001245117 | B97: СоцАп День рождения х10Б_2 12.2022 СМС Доставлено | C97: +79001245117 | D97: 1 | E97: 1
A98: 79001245427 | B98: СоцАп День рождения х10Б_2 12.2022 СМС Доставлено | C98: +79001245427 | D98: 1 | E98: 1
A99: 79001246348 | B99: СоцАп День рождения х10Б_2 12.2022 СМС Доставлено | C99: +79001246348 | D99: 1 | E99: 1
A100: 79001246788 | B100: СоцАп День рождения х10Б_2 12.2022 СМС Доставлено | C100: +79001246788 | D100: 1 | E100: 1
A101: 79001246954 | B101: СоцАп День рождения х10Б_2 12.2022 СМС Доставлено | C101: +79001246954 | D101: 1 | E101: 1
A102: 79001247573 | B102: СоцАп День рождения х10Б_2 12.2022 СМС Доставлено | C102: +79001247573 | D102: 1 | E102: 1
A103: 79001247588 | B103: СоцАп День рождения х10Б_2 12.2022 СМС Доставлено | C103: +79001247588 | D103: 1 | E103: 1
A104: 79001247872 | B104: СоцАп День рождения х10Б_2 12.2022 СМС Доставлено | C104: +79001247872 | D104: 1 | E104: 1
A105: 79001249034 | B105: СоцАп День рождения х10Б_2 12.2022 СМС Доставлено | C105: +79001249034 | D105: 1 | E105: 1
A106: 79001249490 | B106: СоцАп День рождения х10Б_2 12.2022 СМС Доставлено | C106: +79001249490 | D106: 1 | E106: 1
A107: 79001250007 | B107: СоцАп День рождения х10Б_2 12.2022 СМС Доставлено | C107: +79001250007 | D107: 1 | E107: 1
A108: 79001251117 | B108: СоцАп День рождения х10Б_2 12.2022 СМС Доставлено | C108: +79001251117 | D108: 1 | E108: 1
A109: 79001251888 | B109: СоцАп День рождения х10Б_2 12.2022 СМС Доставлено | C109: +79001251888 | D109: 1 | E109: 1
A110: 79001251986 | B110: СоцАп День рождения х10Б_2 12.2022 СМС Доставлено | C110: +79001251986 | D110: 1 | E110: 1
A111: 79001252059 | B111: СоцАп День рождения х10Б_2 12.2022 СМС Доставлено | C111: +79001252059 | D111: 1 | E111: 1
A112: 79001252090 | B112: СоцАп День рождения х10Б_2 12.2022 СМС Доставлено | C112: +79001252090 | D112: 1 | E112: 1
A113: 79001252877 | B113: СоцАп День рождения х10Б_2 12.2022 СМС Доставлено | C113: +79001252877 | D113: 1 | E113: 1
A114: 79001253590 | B114: СоцАп День рождения х10Б_2 12.2022 СМС Доставлено | C114: +79001253590 | D114: 1 | E114: 1
A115: 79001254361 | B115: СоцАп День рождения х10Б_2 12.2022 СМС Доставлено | C115: +79001254361 | D115: 1 | E115: 1
A116: 79001254747 | B116: СоцАп День рождения х10Б_2 12.2022 СМС Доставлено | C116: +79001254747 | D116: 1 | E116: 1
A117: 79001254797 | B117: СоцАп День рождения х10Б_2 12.2022 СМС Доставлено | C117: +79001254797 | D117: 1 | E117: 1
A118: 79001255292 | B118: СоцАп День рождения х10Б_2 12.2022 СМС Доставлено | C118: +79001255292 | D118: 1 | E118: 1
A119: 79001255522 | B119: СоцАп День рождения х10Б_2 12.2022 СМС Доставлено | C119: +79001255522 | D119: 1 | E119: 1
A120: 79001255900 | B120: СоцАп День рождения х10Б_2 12.2022 СМС Доставлено | C120: +79001255900 | D120: 1 | E120: 1
A121: 79001256019 | B121: СоцАп День рождения х10Б_2 12.2022 СМС Доставлено | C121: +79001256019 | D121: 1 | E121: 1
A122: 79001257014 | B122: СоцАп День рождения х10Б_2 12.2022 СМС Доставлено | C122: +79001257014 | D122: 1 | E122: 1
A123: 79001257224 | B123: СоцАп День рождения х10Б_2 12.2022 СМС Доставлено | C123: +79001257224 | D123: 1 | E123: 1
A124: 79001259278 | B124: СоцАп День рождения х10Б_2 12.2022 СМС Доставлено | C124: +79001259278 | D124: 1 | E124: 1
A125: 79001259611 | B125: СоцАп День рождения х10Б_2 12.2022 СМС Доставлено | C125: +79001259611 | D125: 1 | E125: 1
A126: 79001260002 | B126: СоцАп День рождения х10Б_2 12.2022 СМС Доставлено | C126: +79001260002 | D126: 1 | E126: 1
A127: 79001260165 | B127: СоцАп День рождения х10Б_2 12.2022 СМС Доставлено | C127: +79001260165 | D127: 1 | E127: 1
A128: 79001260491 | B128: СоцАп День рождения х10Б_2 12.2022 СМС Доставлено | C128: +79001260491 | D128: 1 | E128: 1
A129: 79001261138 | B129: СоцАп День рождения х10Б_2 12.2022 СМС Доставлено | C129: +79001261138 | D129: 1 | E129: 1
A130: 79001261238 | B130: СоцАп День рождения х10Б_2 12.2022 СМС Доставлено | C130: +79001261238 | D130: 1 | E130: 1
A131: 79001261335 | B131: СоцАп День рождения х10Б_2 12.2022 СМС Доставлено | C131: +79001261335 | D131: 1 | E131: 1
A132: 79001261469 | B132: СоцАп День рождения х10Б_2 12.2022 СМС Доставлено | C132: +79001261469 | D132: 1 | E132: 1
A133: 79001263094 | B133: СоцАп День рождения х10Б_2 12.2022 СМС Доставлено | C133: +79001263094 | D133: 1 | E133: 1
A134: 79001263112 | B134: СоцАп День рождения х10Б_2 12.2022 СМС Доставлено | C134: +79001263112 | D134: 1 | E134: 1
A135: =C135*1 -> 79001263689 | B135: СоцАп День рождения х10Б_2 12.2022 СМС Доставлено | C135: +79001263689 | D135: 1 | E135: 1
A136: 79001264545 | B136: СоцАп День рождения х10Б_2 12.2022 СМС Доставлено | C136: +79001264545 | D136: 1 | E136: 1
A137: 79001266353 | B137: СоцАп День рождения х10Б_2 12.2022 СМС Доставлено | C137: +79001266353 | D137: 1 | E137: 1
A138: 79001268116 | B138: СоцАп День рождения х10Б_2 12.2022 СМС Доставлено | C138: +79001268116 | D138: 1 | E138: 1
A139: 79001268804 | B139: СоцАп День рождения х10Б_2 12.2022 СМС Доставлено | C139: +79001268804 | D139: 1 | E139: 1
A140: 79001268881 | B140: СоцАп День рождения х10Б_2 12.2022 СМС Доставлено | C140: +79001268881 | D140: 1 | E140: 1
A141: 79001269000 | B141: СоцАп День рождения х10Б_2 12.2022 СМС Доставлено | C141: +79001269000 | D141: 1 | E141: 1
A142: 79001270147 | B142: СоцАп День рождения х10Б_2 12.2022 СМС Доставлено | C142: +79001270147 | D142: 1 | E142: 1
A143: 79001270558 | B143: СоцАп День рождения х10Б_2 12.2022 СМС Доставлено | C143: +79001270558 | D143: 1 | E143: 1
A144: 79001270827 | B144: СоцАп День рождения х10Б_2 12.2022 СМС Доставлено | C144: +79001270827 | D144: 1 | E144: 1
A145: 79001271099 | B145: СоцАп День рождения х10Б_2 12.2022 СМС Доставлено | C145: +79001271099 | D145: 1 | E145: 1
A146: 79001271662 | B146: СоцАп День рождения х10Б_2 12.2022 СМС Доставлено | C146: +79001271662 | D146: 1 | E146: 1
A147: 79001273013 | B147: СоцАп День рождения х10Б_2 12.2022 СМС Доставлено | C147: +79001273013 | D147: 1 | E147: 1
A148: 79001275419 | B148: СоцАп День рождения х10Б_2 12.2022 СМС Доставлено | C148: +79001275419 | D148: 1 | E148: 1
A149: 79001276290 | B149: СоцАп День рождения х10Б_2 12.2022 СМС Доставлено | C149: +79001276290 | D149: 1 | E149: 1
A150: 79001277235 | B150: СоцАп День рождения х10Б_2 12.2022 СМС Доставлено | C150: +79001277235 | D150: 1 | E150: 1
A151: 79001278600 | B151: СоцАп День рождения х10Б_2 12.2022 СМС Доставлено | C151: +79001278600 | D151: 1 | E151: 1
A152: 79001280051 | B152: СоцАп День рождения х10Б_2 12.2022 СМС Доставлено | C152: +79001280051 | D152: 1 | E152: 1
A153: 79001280312 | B153: СоцАп День рождения х10Б_2 12.2022 СМС Доставлено | C153: +79001280312 | D153: 1 | E153: 1
A154: 79001280391 | B154: СоцАп День рождения х10Б_2 12.2022 СМС Доставлено | C154: +79001280391 | D154: 1 | E154: 1
A155: 79001281072 | B155: СоцАп День рождения х10Б_2 12.2022 СМС Доставлено | C155: +79001281072 | D155: 1 | E155: 1
A156: 79001281138 | B156: СоцАп День рождения х10Б_2 12.2022 СМС Доставлено | C156: +79001281138 | D156: 1 | E156: 1
A157: 79001282721 | B157: СоцАп День рождения х10Б_2 12.2022 СМС Доставлено | C157: +79001282721 | D157: 1 | E157: 1
A158: 79001284855 | B158: СоцАп День рождения х10Б_2 12.2022 СМС Доставлено | C158: +79001284855 | D158: 1 | E158: 1
A159: 79001285440 | B159: СоцАп День рождения х10Б_2 12.2022 СМС Доставлено | C159: +79001285440 | D159: 1 | E159: 1
A160: 79001286272 | B160: СоцАп День рождения х10Б_2 12.2022 СМС Доставлено | C160: +79001286272 | D160: 1 | E160: 1
A161: 79001286827 | B161: СоцАп День рождения х10Б_2 12.2022 СМС Доставлено | C161: +79001286827 | D161: 1 | E161: 1
A162: 79001286872 | B162: СоцАп День рождения х10Б_2 12.2022 СМС Доставлено | C162: +79001286872 | D162: 1 | E162: 1
A163: 79001287000 | B163: СоцАп День рождения х10Б_2 12.2022 СМС Доставлено | C163: +79001287000 | D163: 1 | E163: 1
A164: 79001287707 | B164: СоцАп День рождения х10Б_2 12.2022 СМС Доставлено | C164: +79001287707 | D164: 1 | E164: 1
A165: 79001287867 | B165: СоцАп День рождения х10Б_2 12.2022 СМС Доставлено | C165: +79001287867 | D165: 1 | E165: 1
A166: 79001288106 | B166: СоцАп День рождения х10Б_2 12.2022 СМС Доставлено | C166: +79001288106 | D166: 1 | E166: 1
A167: 79001288133 | B167: СоцАп День рождения х10Б_2 12.2022 СМС Доставлено | C167: +79001288133 | D167: 1 | E167: 1
A168: 79001289556 | B168: СоцАп День рождения х10Б_2 12.2022 СМС Доставлено | C168: +79001289556 | D168: 1 | E168: 1
A169: 79001289924 | B169: СоцАп День рождения х10Б_2 12.2022 СМС Доставлено | C169: +79001289924 | D169: 1 | E169: 1
A170: 79001290759 | B170: СоцАп День рождения х10Б_2 12.2022 СМС Доставлено | C170: +79001290759 | D170: 1 | E170: 1
A171: 79001292240 | B171: СоцАп День рождения х10Б_2 12.2022 СМС Доставлено | C171: +79001292240 | D171: 1 | E171: 1
A172: 79001292307 | B172: СоцАп День рождения х10Б_2 12.2022 СМС Доставлено | C172: +79001292307 | D172: 1 | E172: 1
A173: 79001292826 | B173: СоцАп День рождения х10Б_2 12.2022 СМС Доставлено | C173: +79001292826 | D173: 1 | E173: 1
A174: 79001292871 | B174: СоцАп День рождения х10Б_2 12.2022 СМС Доставлено | C174: +79001292871 | D174: 1 | E174: 1
A175: 79001292990 | B175: СоцАп День рождения х10Б_2 12.2022 СМС Доставлено | C175: +79001292990 | D175: 1 | E175: 1
A176: 79001293072 | B176: СоцАп День рождения х10Б_2 12.2022 СМС Доставлено | C176: +79001293072 | D176: 1 | E176: 1
A177: 79001293517 | B177: СоцАп День рождения х10Б_2 12.2022 СМС Доставлено | C177: +79001293517 | D177: 1 | E177: 1
A178: 79001293682 | B178: СоцАп День рождения х10Б_2 12.2022 СМС Доставлено | C178: +79001293682 | D178: 1 | E178: 1
A179: 79001294029 | B179: СоцАп День рождения х10Б_2 12.2022 СМС Доставлено | C179: +79001294029 | D179: 1 | E179: 1
A180: 79001294394 | B180: СоцАп День рождения х10Б_2 12.2022 СМС Доставлено | C180: +79001294394 | D180: 1 | E180: 1
A181: 79001294930 | B181: СоцАп День рождения х10Б_2 12.2022 СМС Доставлено | C181: +79001294930 | D181: 1 | E181: 1
A182: 79001295296 | B182: СоцАп День рождения х10Б_2 12.2022 СМС Доставлено | C182: +79001295296 | D182: 1 | E182: 1
A183: 79001295570 | B183: СоцАп День рождения х10Б_2 12.2022 СМС Доставлено | C183: +79001295570 | D183: 1 | E183: 1
A184: 79001296831 | B184: СоцАп День рождения х10Б_2 12.2022 СМС Доставлено | C184: +79001296831 | D184: 1 | E184: 1
A185: 79001296877 | B185: СоцАп День рождения х10Б_2 12.2022 СМС Доставлено | C185: +79001296877 | D185: 1 | E185: 1
A186: 79001297276 | B186: СоцАп День рождения х10Б_2 12.2022 СМС Доставлено | C186: +79001297276 | D186: 1 | E186: 1
A187: 79001298570 | B187: СоцАп День рождения х10Б_2 12.2022 СМС Доставлено | C187: +79001298570 | D187: 1 | E187: 1
A188: 79001299040 | B188: СоцАп День рождения х10Б_2 12.2022 СМС Доставлено | C188: +79001299040 | D188: 1 | E188: 1
A189: 79001299048 | B189: СоцАп День рождения х10Б_2 12.2022 СМС Доставлено | C189: +79001299048 | D189: 1 | E189: 1
A190: 79001299191 | B190: СоцАп День рождения х10Б_2 12.2022 СМС Доставлено | C190: +79001299191 | D190: 1 | E190: 1
A191: 79001300320 | B191: СоцАп День рождения х10Б_2 12.2022 СМС Доставлено | C191: +79001300320 | D191: 1 | E191: 1
A192: 79001300525 | B192: СоцАп День рождения х10Б_2 12.2022 СМС Доставлено | C192: +79001300525 | D192: 1 | E192: 1
A193: 79001301194 | B193: СоцАп День рождения х10Б_2 12.2022 СМС Доставлено | C193: +79001301194 | D193: 1 | E193: 1
A194: 79001301544 | B194: СоцАп День рождения х10Б_2 12.2022 СМС Доставлено | C194: +79001301544 | D194: 1 | E194: 1
A195: 79001302045 | B195: СоцАп День рождения х10Б_2 12.2022 СМС Доставлено | C195: +79001302045 | D195: 1 | E195: 1
A196: 79001302820 | B196: СоцАп День рождения х10Б_2 12.2022 СМС Доставлено | C196: +79001302820 | D196: 1 | E196: 1
A197: 79001303602 | B197: СоцАп День рождения х10Б_2 12.2022 СМС Доставлено | C197: +79001303602 | D197: 1 | E197: 1
A198: 79001303930 | B198: СоцАп День рождения х10Б_2 12.2022 СМС Доставлено | C198: +79001303930 | D198: 1 | E198: 1
A199: =C199*1 -> 79001304408 | B199: СоцАп День рождения х10Б_2 12.2022 СМС Доставлено | C199: +79001304408 | D199: 1 | E199: 1
A200: 79001304866 | B200: СоцАп День рождения х10Б_2 12.2022 СМС Доставлено | C200: +79001304866 | D200: 1 | E200: 1
A201: 79001305114 | B201: СоцАп День рождения х10Б_2 12.2022 СМС Доставлено | C201: +79001305114 | D201: 1 | E201: 1
A202: 79001305224 | B202: СоцАп День рождения х10Б_2 12.2022 СМС Доставлено | C202: +79001305224 | D202: 1 | E202: 1
A203: 79001305246 | B203: СоцАп День рождения х10Б_2 12.2022 СМС Доставлено | C203: +79001305246 | D203: 1 | E203: 1
... 4297 more rows

Sheet нет контактов в КУБе
A3: Получатель
A4: 79384705383
A5: 79085177725
A6: 79531105410
A7: 79034077755
A8: 79034096062
A9: 79045072004
A10: 79375654798
A11: 79529517250
A12: 79094120981
A13: 79289032728
A14: 79377067204
A15: 79528706666
A16: 79081870020
A17: 79616600219
A18: 79298142647
A19: 79996986641
A20: 79087855969
A21: 79003080876
A22: 79518411672
A23: 79518397272
A24: 79528150120
A25: 79034350418
A26: 79994823728
A27: 79515423737
A28: 79298139108
A29: 79623091488
A30: 79518245070
A31: 79081986042
A32: 79518486029
A33: 79996535252
A34: 79518420421
A35: 79514990615
A36: 79966135339
A37: 79613249757
A38: 79954218431
A39: 79185912993
A40: 79385328682
A41: 79514918736
A42: 79651230457
A43: 79614303677
A44: 79966119570
A45: 79282051022
A46: 79044331124
A47: 79045087541
A48: 79298147150
A49: 79289059156
A50: 79045030261
A51: 79620021662
A52: 79616632868
A53: 79601016306
A54: 79515499362
A55: 79183890701
A56: 79034198206
A57: 79033804509
A58: 79061840697
A59: 79085137608
A60: 79094612051
A61: 79964727633
A62: 79287770130
A63: 79045086261
A64: 79378200127
A65: 79365117825
A66: 79380273350
A67: 79282821369
A68: 79205175928
A69: 79511401949
A70: 79612938904
A71: 79050614829
A72: 79951344915
A73: 79616753485
A74: 79608744441
A75: 79205083467
A76: 79778156604
A77: 79381491120
A78: 79518351153
A79: 79518258575
A80: 79287543105
A81: 79377387196
A82: 79649323443
A83: 79081471375
A84: 79614067535
A85: 79344444161
A86: 79276604455
A87: 79181031728
A88: 79288564173
A89: 79518741512
A90: 79524116278
A91: 79371274933
A92: 79289090038
A93: 79604591327
A94: 79347777715
A95: 79281971205
A96: 79024055651
A97: 79530960876
A98: 79996468425
A99: 79023611773
A100: 79043403460
A101: 79613041689
A102: 79282648474
A103: 79054030898
A104: 79381017761
A105: 79620094063
A106: 79284007746
A107: 79530713898
A108: 79525822405
A109: 79508672139
A110: 79300853030
A111: 79515195526
A112: 79281292335
A113: 79275626392
A114: 79525432194
A115: 79281441373
A116: 79956149327
A117: 79286605434
A118: 79964105567
A119: 79375077368
A120: 79044490617
A121: 79094581120
A122: 79920403287
A123: 79040969566
A124: 79286663538
A125: 79614997718
A126: 79281440345
A127: 79282932680
A128: 79034102158
A129: 79034528578
A130: 79281850379
A131: 79044083890
A132: 79508692593
A133: 79518769913
A134: 79858524373
A135: 79624334841
A136: 79038628302
A137: 79515602874
A138: 79515529161
A139: 79056823572
A140: 79514949035
A141: 79189203111
A142: 79081925030
A143: 79608742636
A144: 79508405301
A145: 79204032302
A146: 79045016700
A147: 79614842501
A148: 79286110685
A149: 79298137807
A150: 79204645916
A151: 79375666386
A152: 79043416943
A153: 79286005262
A154: 79524150739
A155: 79613314455
A156: 79006201189
A157: 79286106023
A158: 79511417442
A159: 79094054373
A160: 79667708513
A161: 79525799453
A162: 79081780961
A163: 79612860834
A164: 79288813161
A165: 79617509093
A166: 79002960125
A167: 79081906906
A168: 79286196271
A169: 79515129035
A170: 79614070969
A171: 79287759136
A172: 79384725493
A173: 79955004199
A174: 79298147278
A175: 79094011615
A176: 79508444546
A177: 79529525170
A178: 79044221872
A179: 79065752378
A180: 79001395635
A181: 79034385123
A182: 79613202511
A183: 79608556310
A184: 79537136877
A185: 79969163610
A186: 79026593071
A187: 79524172887
A188: 79377155526
A189: 79525451754
A190: 79515533666
A191: 79034171082
A192: 79508008712
A193: 79624264004
A194: 79212815778
A195: 79624067447
A196: 79508477819
A197: 79531980415
A198: 79290112934
A199: 79633806005
A200: 79604770914
A201: 79384456894
A202: 79300870119
... 2601 more rows
